Workbook

Sheet Summary
A3: Paragon Mortgages (No.10) PLC
A5: Information as at the Principal Determination Date | B5: 2006-02-28 | C5: 2006-05-31 | D5: 2006-08-31 | E5: 2006-11-30 | F5: 2007-02-28 | G5: 2007-05-31 | H5: 2007-08-31 | I5: 2007-11-30 | J5: 2008-02-29 | K5: 2008-05-30 | L5: 2008-08-31 | M5: 2008-11-28 | N5: 2009-02-27 | O5: 2009-05-29 | P5: 2009-08-28 | Q5: 2009-11-30 | R5: 2010-02-26 | S5: 2010-05-28 | T5: 2010-08-31 | U5: 2010-11-30 | V5: 2011-02-28 | W5: 2011-05-31 | X5: 2011-08-31 | Y5: 2011-11-30 | Z5: 2012-02-29 | AA5: 2012-05-31 | AB5: 2012-08-31 | AC5: 2012-11-30 | AD5: 2013-02-28 | AE5: 2013-05-31 | AF5: 2013-08-30 | AG5: 2013-11-29 | AH5: 2014-02-28 | AI5: 2014-05-30 | AJ5: 2014-08-29 | AK5: 2014-11-28 | AL5: 2015-02-27 | AM5: 2015-05-29 | AN5: 2015-08-28 | AO5: 2015-11-30 | AP5: 2016-02-29 | AQ5: 2016-05-31 | AR5: 2016-08-31 | AS5: 2016-11-30 | AT5: 2017-02-28 | AU5: 2017-05-31 | AV5: 2017-08-31 | AW5: 2017-11-30 | AX5: 2018-02-28 | AY5: 2018-05-31 | AZ5: 2018-08-31 | BA5: 2018-11-30 | BB5: 2019-02-28 | BC5: 2019-05-31 | BD5: 2019-08-30 | BE5: 2019-11-29 | BF5: 2020-02-28 | BG5: 2020-05-29 | BH5: 2020-08-28
A6: Mortgage Asset Balance | B6: 989461 | C6: 977387 | D6: 960358 | E6: 939695 | F6: 923667 | G6: 886406 | H6: 820910 | I6: 702273 | J6: 627036 | K6: 598107 | L6: 565844 | M6: 528150 | N6: 516295 | O6: 511790 | P6: 507165 | Q6: 503534 | R6: 496614 | S6: 492428 | T6: 486408 | U6: 482513 | V6: 479074 | W6: 476297 | X6: 474105 | Y6: 470241 | Z6: 466703 | AA6: 464929 | AB6: 461915 | AC6: 458799 | AD6: 456585 | AE6: 454315 | AF6: 452102 | AG6: 447613 | AH6: 444385 | AI6: 439905 | AJ6: 434891 | AK6: 431450 | AL6: 426639.2994 | AM6: 421719.3258 | AN6: 414672.3466 | AO6: 408969.239 | AP6: 403950 | AQ6: 394681 | AR6: 389269 | AS6: 385025.3724 | AT6: 379388 | AU6: 372686.8333 | AV6: 368138.7352 | AW6: 358659.3887 | AX6: 353404.1942 | AY6: 348782 | AZ6: 341260.6758 | BA6: 337947.6823 | BB6: 333797.0523 | BC6: 328975.7747 | BD6: 322692.5262 | BE6: 315701.5566 | BF6: 312454.5724 | BG6: 307594.8473 | BH6: 0
A7: Total Notes | B7: =SUM(B8:B14) -> 989461 | C7: 977387 | D7: 960358 | E7: 939695 | F7: 923667 | G7: 886406 | H7: =SUM(H8:H14) -> 820910 | I7: 702273 | J7: 627036 | K7: 598107 | L7: 565844 | M7: 528150 | N7: =SUM(N8:N14) -> 516295 | O7: 511790 | P7: 507165 | Q7: 503534 | R7: 496614 | S7: 492428 | T7: =SUM(T8:T14) -> 486408 | U7: =SUM(U8:U14) -> 482513 | V7: =SUM(V8:V14) -> 479074 | W7: =SUM(W8:W14) -> 476297 | X7: =SUM(X8:X14) -> 474105 | Y7: =SUM(Y8:Y14)+1 -> 470241 | Z7: =SUM(Z8:Z14)-1 -> 466703 | AA7: =SUM(AA8:AA14) -> 464929 | AB7: =SUM(AB8:AB14) -> 461915 | AC7: =SUM(AC8:AC14) -> 458799 | AD7: =SUM(AD8:AD14)-1 -> 456585 | AE7: =SUM(AE8:AE14) -> 454315 | AF7: =SUM(AF8:AF14) -> 452102 | AG7: =SUM(AG8:AG14) -> 447613 | AH7: =SUM(AH8:AH14) -> 444385 | AI7: =SUM(AI8:AI14)-1 -> 439905 | AJ7: =SUM(AJ8:AJ14)-1 -> 434891 | AK7: =SUM(AK8:AK14)-1 -> 431450 | AL7: =SUM(AL8:AL14)-1 -> 426639 | AM7: =SUM(AM8:AM14) -> 421719 | AN7: =SUM(AN8:AN14) -> 414672 | AO7: =SUM(AO8:AO14)+1 -> 408969 | AP7: =SUM(AP8:AP14) -> 403950 | AQ7: 394681 | AR7: 389269 | AS7: 385025 | AT7: 379388 | AU7: =SUM(AU8:AU14)+1 -> 372687 | AV7: =SUM(AV8:AV14) -> 368139 | AW7: =SUM(AW8:AW14)-1 -> 358659 | AX7: =SUM(AX8:AX14) -> 353404 | AY7: =SUM(AY8:AY14)-1 -> 348782 | AZ7: =SUM(AZ8:AZ14) -> 341261 | BA7: =SUM(BA8:BA14) -> 337948 | BB7: =SUM(BB8:BB14)+1 -> 333797 | BC7: =SUM(BC8:BC14) -> 328976 | BD7: =SUM(BD8:BD14)+2 -> 322693 | BE7: =SUM(BE8:BE14)+1 -> 315702 | BF7: =SUM(BF8:BF14)+2 -> 312455 | BG7: =SUM(BG8:BG14)+1 -> 307595 | BH7: =SUM(BH8:BH14) -> 0
A8: Class A1 Notes | B8: 620204 | C8: 608130 | D8: 591101 | E8: 570438 | F8: 554410 | G8: 517149 | H8: 451653 | I8: 333016 | J8: 257779 | K8: 228850 | L8: 196587 | M8: 158893 | N8: 147038 | O8: 142533 | P8: 137908 | Q8: 134277 | R8: 127357 | S8: 123171 | T8: 117151 | U8: 113256 | V8: 113256 | W8: 112225 | X8: 110535 | Y8: 107555 | Z8: 104828 | AA8: 103460 | AB8: 101136 | AC8: 98734 | AD8: 97027 | AE8: 95277 | AF8: 93570 | AG8: 90109 | AH8: 87621 | AI8: 84167 | AJ8: 80301 | AK8: 77648 | AL8: 73939 | AM8: 70145 | AN8: 64712 | AO8: 60315 | AP8: 56445 | AQ8: 49299 | AR8: 45126 | AS8: 41854 | AT8: 37508 | AU8: 32341 | AV8: 28835 | AW8: 21526 | AX8: 17474 | AY8: 13911 | AZ8: 8112 | BA8: 5557 | BB8: 2357 | BC8: 0 | BD8: 0 | BE8: 0 | BF8: 0 | BG8: 0 | BH8: 0
A9: Class A2a Notes | B9: 105000 | C9: 105000 | D9: 105000 | E9: 105000 | F9: 105000 | G9: 105000 | H9: 105000 | I9: 105000 | J9: 105000 | K9: 105000 | L9: 105000 | M9: 105000 | N9: 105000 | O9: 105000 | P9: 105000 | Q9: 105000 | R9: 105000 | S9: 105000 | T9: 105000 | U9: 105000 | V9: 105000 | W9: 105000 | X9: 105000 | Y9: 105000 | Z9: 105000 | AA9: 105000 | AB9: 105000 | AC9: 105000 | AD9: 105000 | AE9: 105000 | AF9: 105000 | AG9: 105000 | AH9: 105000 | AI9: 105000 | AJ9: 105000 | AK9: 105000 | AL9: 105000 | AM9: 105000 | AN9: 105000 | AO9: 105000 | AP9: 105000 | AQ9: 105000 | AR9: 105000 | AS9: 105000 | AT9: 105000 | AU9: 105000 | AV9: 105000 | AW9: 105000 | AX9: 105000 | AY9: 105000 | AZ9: 105000 | BA9: 105000 | BB9: 105000 | BC9: 104440 | BD9: 102445 | BE9: 100226 | BF9: 99195 | BG9: 97652 | BH9: 0
A10: Class A2b Notes | B10: 150000 | C10: 150000 | D10: 150000 | E10: 150000 | F10: 150000 | G10: 150000 | H10: 150000 | I10: 150000 | J10: 150000 | K10: 150000 | L10: 150000 | M10: 150000 | N10: 150000 | O10: 150000 | P10: 150000 | Q10: 150000 | R10: 150000 | S10: 150000 | T10: 150000 | U10: 150000 | V10: 150000 | W10: 150000 | X10: 150000 | Y10: 150000 | Z10: 150000 | AA10: 150000 | AB10: 150000 | AC10: 150000 | AD10: 150000 | AE10: 150000 | AF10: 150000 | AG10: 150000 | AH10: 150000 | AI10: 150000 | AJ10: 150000 | AK10: 150000 | AL10: 150000 | AM10: 150000 | AN10: 150000 | AO10: 150000 | AP10: 150000 | AQ10: 150000 | AR10: 150000 | AS10: 150000 | AT10: 150000 | AU10: 150000 | AV10: 150000 | AW10: 150000 | AX10: 150000 | AY10: 150000 | AZ10: 150000 | BA10: 150000 | BB10: 150000 | BC10: 149200 | BD10: 146350 | BE10: 143180 | BF10: 141707 | BG10: 139503 | BH10: 0
A11: Class B1a Notes | B11: 31000 | C11: 31000 | D11: 31000 | E11: 31000 | F11: 31000 | G11: 31000 | H11: 31000 | I11: 31000 | J11: 31000 | K11: 31000 | L11: 31000 | M11: 31000 | N11: 31000 | O11: 31000 | P11: 31000 | Q11: 31000 | R11: 31000 | S11: 31000 | T11: 31000 | U11: 31000 | V11: 30067 | W11: 29593 | X11: 29457 | Y11: 29217 | Z11: 28997 | AA11: 28887 | AB11: 28700 | AC11: 28506 | AD11: 28369 | AE11: 28227 | AF11: 28090 | AG11: 27811 | AH11: 27611 | AI11: 27332 | AJ11: 27021 | AK11: 26807 | AL11: 26508 | AM11: 26202 | AN11: 25764 | AO11: 25410 | AP11: 25098 | AQ11: 24522 | AR11: 24186 | AS11: 23922 | AT11: 23572 | AU11: 23156 | AV11: 22873 | AW11: 22284 | AX11: 21958 | AY11: 21671 | AZ11: 21203 | BA11: 20997 | BB11: 20739 | BC11: 20440 | BD11: 20049 | BE11: 19615 | BF11: 19413 | BG11: 19111 | BH11: 0
A12: Class B1b Notes | B12: 13176 | C12: 13176 | D12: 13176 | E12: 13176 | F12: 13176 | G12: 13176 | H12: 13176 | I12: 13176 | J12: 13176 | K12: 13176 | L12: 13176 | M12: 13176 | N12: 13176 | O12: 13176 | P12: 13176 | Q12: 13176 | R12: 13176 | S12: 13176 | T12: 13176 | U12: 13176 | V12: 12779 | W12: 12578 | X12: 12520 | Y12: 12418 | Z12: 12325 | AA12: 12278 | AB12: 12198 | AC12: 12116 | AD12: 12058 | AE12: 11998 | AF12: 11939 | AG12: 11821 | AH12: 11735 | AI12: 11617 | AJ12: 11485 | AK12: 11394 | AL12: 11267 | AM12: 11137 | AN12: 10951 | AO12: 10800 | AP12: 10668 | AQ12: 10423 | AR12: 10280 | AS12: 10168 | AT12: 10019 | AU12: 9842 | AV12: 9722 | AW12: 9472 | AX12: 9333 | AY12: 9211 | AZ12: 9012 | BA12: 8925 | BB12: 8815 | BC12: 8688 | BD12: 8522 | BE12: 8337 | BF12: 8251 | BG12: 8123 | BH12: 0
A13: Class C1a Notes | B13: 51500 | C13: 51500 | D13: 51500 | E13: 51500 | F13: 51500 | G13: 51500 | H13: 51500 | I13: 51500 | J13: 51500 | K13: 51500 | L13: 51500 | M13: 51500 | N13: 51500 | O13: 51500 | P13: 51500 | Q13: 51500 | R13: 51500 | S13: 51500 | T13: 51500 | U13: 51500 | V13: 49950 | W13: 49163 | X13: 48937 | Y13: 48538 | Z13: 48173 | AA13: 47990 | AB13: 47679 | AC13: 47357 | AD13: 47128 | AE13: 46894 | AF13: 46666 | AG13: 46202 | AH13: 45869 | AI13: 45407 | AJ13: 44889 | AK13: 44534 | AL13: 44037 | AM13: 43530 | AN13: 42802 | AO13: 42213 | AP13: 41695 | AQ13: 40739 | AR13: 40180 | AS13: 39742 | AT13: 39160 | AU13: 38468 | AV13: 37999 | AW13: 37021 | AX13: 36478 | AY13: 36001 | AZ13: 35225 | BA13: 34883 | BB13: 34454 | BC13: 33957 | BD13: 33308 | BE13: 32586 | BF13: 32251 | BG13: 31750 | BH13: 0
A14: Class C1b Notes | B14: 18581 | C14: 18581 | D14: 18581 | E14: 18581 | F14: 18581 | G14: 18581 | H14: 18581 | I14: 18581 | J14: 18581 | K14: 18581 | L14: 18581 | M14: 18581 | N14: 18581 | O14: 18581 | P14: 18581 | Q14: 18581 | R14: 18581 | S14: 18581 | T14: 18581 | U14: 18581 | V14: 18022 | W14: 17738 | X14: 17656 | Y14: 17512 | Z14: 17381 | AA14: 17314 | AB14: 17202 | AC14: 17086 | AD14: 17004 | AE14: 16919 | AF14: 16837 | AG14: 16670 | AH14: 16549 | AI14: 16383 | AJ14: 16196 | AK14: 16068 | AL14: 15889 | AM14: 15705 | AN14: 15443 | AO14: 15230 | AP14: 15044 | AQ14: 14698 | AR14: 14497 | AS14: 14339 | AT14: 14129 | AU14: 13879 | AV14: 13710 | AW14: 13357 | AX14: 13161 | AY14: 12989 | AZ14: 12709 | BA14: 12586 | BB14: 12431 | BC14: 12251 | BD14: 12017 | BE14: 11757 | BF14: 11636 | BG14: 11455 | BH14: 0
A15: Class B and C Notes as a % of the Total Notes | B15: =SUM(B11:B14)/B7 -> 0.1154739803 | C15: 0.1169004703 | D15: 0.1189733412 | E15: 0.1215894519 | F15: 0.1236993419 | G15: 0.1288991726 | H15: 0.1391833453 | I15: 0.1626959886 | J15: 0.1822176079 | K15: 0.1910310363 | L15: 0.2019231449 | M15: 0.2163343747 | N15: 0.2213017751 | O15: 0.2232497704 | P15: 0.2252856565 | Q15: 0.2269101987 | R15: 0.2300720479 | S15: 0.2320278294 | T15: 0.2348995082 | U15: 0.2367956926 | V15: 0.2313170825 | W15: 0.2289999727 | X15: 0.2289999051 | Y15: 0.2289995981 | Z15: =SUM(Z11:Z14)/Z7 -> 0.2290021705 | AA15: 0.2290005571 | AB15: 0.2290010067 | AC15: 0.2290000632 | AD15: 0.2290022668 | AE15: 0.2289997028 | AF15: =SUM(AF11:AF14)/AF7 -> 0.22900142 | AG15: 0.2290013918 | AH15: 0.2289996287 | AI15: 0.2290017163 | AJ15: 0.2290022097 | AK15: 0.2290022019 | AL15: =SUM(AL11:AL14)/AL7 -> 0.2290015681 | AM15: 0.2290008276 | AN15: =SUM(AN11:AN14)/AN7 -> 0.2290002701 | AO15: 0.2289977969 | AP15: =SUM(AP11:AP14)/AP7 -> 0.229001114 | AQ15: 0.2290001292 | AR15: =SUM(AR11:AR14)/AR7 -> 0.229001025 | AS15: 0.2290007142 | AT15: 0.2290003901 | AU15: 0.2289991333 | AV15: 0.2290004591 | AW15: =SUM(AW11:AW14)/AW7 -> 0.2290030363 | AX15: 0.2290013695 | AY15: 0.2290026435 | AZ15: 0.2290006769 | BA15: 0.2290026868 | BB15: 0.2289984631 | BC15: =SUM(BC11:BC14)/BC7 -> 0.2290015077 | BD15: 0.2289978401 | BE15: =SUM(BE11:BE14)/BE7 -> 0.228997599 | BF15: 0.2289961754 | BG15: =SUM(BG11:BG14)/BG7 -> 0.228999171 | BH15: 0
A16: Overall Lifetime Redemption Rate | B16: 0.0545 | C16: 0.0606 | D16: 0.0698 | E16: 0.0772 | F16: 0.0789 | G16: 0.0935 | H16: 0.1217 | I16: 0.1742 | J16: 0.1988 | K16: 0.1983 | L16: 0.1993 | M16: 0.2032 | N16: 0.1949 | O16: 0.1849 | P16: 0.1759 | Q16: 0.1673 | R16: 0.1608 | S16: 0.1542 | T16: 0.1488 | U16: 0.1434 | V16: 0.1384 | W16: 0.1336 | X16: 0.129 | Y16: 0.1253 | Z16: 0.1217 | AA16: 0.1179 | AB16: 0.1146 | AC16: 0.1117 | AD16: 0.1087 | AE16: 0.1059 | AF16: 0.1033 | AG16: 0.1014 | AH16: 0.0994 | AI16: 0.0977 | AJ16: 0.0963 | AK16: 0.0946 | AL16: 0.0933 | AM16: 0.0921 | AN16: 0.0915 | AO16: 0.0907 | AP16: 0.0897 | AQ16: 0.0897 | AR16: 0.0889 | AS16: 0.0879 | AT16: 0.0873 | AU16: 0.0869 | AV16: 0.0861 | AW16: 0.0865 | AX16: 0.0859 | AY16: 0.0853 | AZ16: 0.0853 | BA16: 0.0845 | BB16: 0.0838 | BC16: 0.0833 | BD16: 0.0831 | BE16: 0.0831 | BF16: 0.0824 | BG16: 0.0821 | BH16: 1
A17: Quarterly Redemption Rate | B17: 0.018 | C17: 0.0176 | D17: 0.0234 | E17: 0.0263 | F17: 0.0223 | G17: 0.0446 | H17: 0.0789 | I17: 0.1481 | J17: 0.1117 | K17: 0.0522 | L17: 0.0573 | M17: 0.0684 | N17: 0.0227 | O17: 0.0111 | P17: 0.0096 | Q17: 0.0074 | R17: 0.0141 | S17: 0.009 | T17: 0.0124 | U17: 0.0085 | V17: 0.0073 | W17: 0.0061 | X17: 0.005 | Y17: 0.0088 | Z17: 0.0076 | AA17: 0.0039 | AB17: 0.0065 | AC17: 0.0069 | AD17: 0.005 | AE17: 0.0053 | AF17: 0.0052 | AG17: 0.0102 | AH17: 0.0078 | AI17: 0.0103 | AJ17: 0.0119 | AK17: 0.008 | AL17: 0.0117 | AM17: 0.0116 | AN17: 0.0175 | AO17: 0.0144 | AP17: 0.0128 | AQ17: 0.023 | AR17: 0.0141 | AS17: 0.011 | AT17: 0.0154 | AU17: 0.0182 | AV17: 0.0123 | AW17: 0.0273 | AX17: 0.0147 | AY17: 0.014 | AZ17: 0.0219 | BA17: 0.0098 | BB17: 0.0123 | BC17: 0.0144 | BD17: 0.0191 | BE17: 0.0217 | BF17: 0.0103 | BG17: 0.0156 | BH17: 1
A18: Further Advances released in the quarter | B18: 4169 | C18: 3847 | D18: 4969 | E18: 4139 | F18: 4425 | G18: 3500 | H18: 3911 | I18: 2679 | J18: 2835 | K18: 3518 | L18: 1814 | M18: 888 | N18: 80 | O18: 1146 | P18: 233 | Q18: 28 | R18: 168 | S18: 229 | T18: 68 | U18: 196 | V18: 38 | W18: 84 | X18: 153 | Y18: 300 | Z18: 44 | AA18: 0 | AB18: 15 | AC18: 27 | AD18: 40 | AE18: 159 | AF18: 30 | AG18: 8 | AH18: 280 | AI18: 76 | AJ18: 225 | AK18: 42 | AL18: 231 | AM18: 31 | AN18: 318 | AO18: 235 | AP18: 224 | AQ18: 10 | AR18: 160 | AS18: 54 | AT18: 303 | AU18: 205 | AV18: 30 | AW18: 580 | AX18: 0 | AY18: 335 | AZ18: 132 | BA18: 48 | BB18: 0 | BC18: 0 | BD18: 0 | BE18: 0 | BF18: 0 | BG18: 0 | BH18: 0
A19: First Loss Fund Balance | B19: 18607 | C19: 18607 | D19: 18607 | E19: 18607 | F19: 18607 | G19: 18607 | H19: 18607 | I19: 18607 | J19: 18607 | K19: 18607 | L19: 18607 | M19: 18607 | N19: 18607 | O19: 18607 | P19: 18607 | Q19: 18607 | R19: 18607 | S19: 18607 | T19: 18607 | U19: 18607 | V19: 18607 | W19: 18607 | X19: 18607 | Y19: 18607 | Z19: 18607 | AA19: 18607 | AB19: 18607 | AC19: 18607 | AD19: 18607 | AE19: 18607 | AF19: 18607 | AG19: 18607 | AH19: 18607 | AI19: 18607 | AJ19: 18607 | AK19: 18607 | AL19: 18607 | AM19: 18607 | AN19: 18607 | AO19: 18607 | AP19: 18607 | AQ19: 18607 | AR19: 18607 | AS19: 18607 | AT19: 18607 | AU19: 18607 | AV19: 18607 | AW19: 18607 | AX19: 18607 | AY19: 18607 | AZ19: 18607 | BA19: 18607 | BB19: 18607 | BC19: 18607 | BD19: 18607 | BE19: 18607 | BF19: 18607 | BG19: 18607 | BH19: 0
A20: First Loss Fund as a % of the Mortgages | B20: =+B19/B6 -> 0.01880518788 | C20: 0.01903749487 | D20: 0.01937506638 | E20: 0.01980110568 | F20: 0.02014470583 | G20: 0.02099150953 | H20: 0.02266630934 | I20: 0.02649539424 | J20: 0.02967453224 | K20: 0.03110981814 | L20: 0.03288362163 | M20: 0.03523052163 | N20: 0.03603947356 | O20: 0.03635670881 | P20: 0.03668825727 | Q20: 0.03695281749 | R20: 0.03746773148 | S20: 0.03778623474 | T20: 0.03825389385 | U20: 0.03856269158 | V20: 0.03883951122 | W20: 0.03906596094 | X20: 0.0392465804 | Y20: 0.03956907203 | Z20: =+Z19/Z6 -> 0.03986903877 | AA20: 0.04002116452 | AB20: 0.04028230302 | AC20: 0.04055588613 | AD20: 0.04075254334 | AE20: 0.04095616478 | AF20: =+AF19/AF6 -> 0.04115664164 | AG20: 0.04156939142 | AH20: 0.04187135029 | AI20: 0.04229776884 | AJ20: 0.04278543359 | AK20: 0.04312666589 | AL20: =+AL19/AL6 -> 0.04361295368 | AM20: 0.04412176266 | AN20: =+AN19/AN6 -> 0.04487157186 | AO20: 0.04549730939 | AP20: =+AP19/AP6 -> 0.04606263151 | AQ20: 0.04714440269 | AR20: =+AR19/AR6 -> 0.04779985049 | AS20: 0.04832668529 | AT20: =+AT19/AT6 -> 0.04904477738 | AU20: 0.04992663636 | AV20: =+AV19/AV6 -> 0.05054344524 | AW20: 0.0518793055 | AX20: =+AX19/AX6 -> 0.05265076166 | AY20: 0.05334850996 | AZ20: =+AZ19/AZ6 -> 0.05452430157 | BA20: 0.0550588182 | BB20: =+BB19/BB6 -> 0.05574345212 | BC20: 0.05656039572 | BD20: =+BD19/BD6 -> 0.05766170113 | BE20: 0.0589385754 | BF20: =+BF19/BF6 -> 0.05955105683 | BG20: 0.06049191059 | BH20: 0
A21: Opening PDL Balance | B21: 0 | C21: 0 | D21: 0 | E21: 0 | F21: 0 | G21: 0 | H21: 0 | I21: 0 | J21: 0 | K21: 0 | L21: 0 | M21: 0 | N21: 0 | O21: 0 | P21: 0 | Q21: 0 | R21: 0 | S21: 0 | T21: 0 | U21: 0 | V21: 0 | W21: 0 | X21: 0 | Y21: 0 | Z21: 0 | AA21: 0 | AB21: 0 | AC21: 0 | AD21: 0 | AE21: 0 | AF21: 0 | AG21: 0 | AH21: 0 | AI21: 0 | AJ21: 0 | AK21: 0 | AL21: 0 | AM21: 0 | AN21: 0 | AO21: 0 | AP21: 0 | AQ21: 0 | AR21: 0 | AS21: 0 | AT21: 0 | AU21: 0 | AV21: 0 | AW21: 0 | AX21: 0 | AY21: 0 | AZ21: 0 | BA21: 0 | BB21: 0 | BC21: 0 | BD21: 0 | BE21: 0 | BF21: 0 | BG21: 0 | BH21: 0
A22: Quarterly Losses | B22: 0 | C22: 0 | D22: 0 | E22: =SUM(E92+E124) -> 0 | F22: 1 | G22: 87 | H22: 40 | I22: 191 | J22: 66 | K22: 0 | L22: 168 | M22: 76 | N22: 326 | O22: =SUM(O92+O124) -> 558 | P22: 231 | Q22: 481 | R22: 1194 | S22: 495 | T22: 579 | U22: =SUM(U92+U124) -> 33 | V22: 185 | W22: 148 | X22: -84 | Y22: -43 | Z22: 252 | AA22: 36 | AB22: 147 | AC22: =SUM(AC92+AC124) -> 116 | AD22: -102 | AE22: 29 | AF22: -182 | AG22: 101 | AH22: 44 | AI22: =SUM(AI92+AI124) -> -1 | AJ22: 116 | AK22: =SUM(AK92+AK124) -> 69 | AL22: =SUM(AL92+AL124) -> 155 | AM22: 87 | AN22: =SUM(AN92+AN124) -> 75 | AO22: 144 | AP22: =SUM(AP92+AP124) -> 354 | AQ22: 306 | AR22: =SUM(AR92+AR124) -> 38 | AS22: 59 | AT22: =SUM(AT92+AT124) -> 373 | AU22: 135 | AV22: =SUM(AV92+AV124) -> -17 | AW22: 7 | AX22: =SUM(AX92+AX124) -> 110 | AY22: -35 | AZ22: =SUM(AZ92+AZ124) -> -22 | BA22: 61 | BB22: =SUM(BB92+BB124) -> 28 | BC22: 60 | BD22: =SUM(BD92+BD124) -> 314 | BE22: 282 | BF22: =SUM(BF92+BF124) -> -45 | BG22: 194 | BH22: =SUM(BH92+BH124) -> -3
A23: Quarterly Loss Rate (annualised) | B23: 0 | C23: =1-(1-C22/C6)^4 -> 0 | D23: 0 | E23: 0 | F23: 4.330557987e-06 | G23: 0.0003925388248 | H23: 0.0001948914084 | I23: 0.001087452279 | J23: 0.000420961988 | K23: 0 | L23: 0.001187077679 | M23: 0.0005754698259 | N23: 0.002523296678 | O23: 0.004354036535 | P23: 0.001820647927 | Q23: 0.00381552171 | R23: 0.009582499319 | S23: 0.004014833616 | T23: 0.004752939866 | U23: 0.0002735396953 | V23: 0.001543752053 | W23: 0.001242342758 | X23: 0 | Y23: 0 | Z23: 0.002158083144 | AA23: =1-(1-AA22/AA6)^4 -> 0.000309688739 | AB23: =1-(1-AB22/AB6)^4 -> 0.001272353943 | AC23: =1-(1-AC22/AC6)^4 -> 0.001010952633 | AD23: 0 | AE23: =1-(1-AE22/AE6)^4 -> 0.0002553050056 | AF23: 0 | AG23: =1-(1-AG22/AG6)^4 -> 0.0009022599476 | AH23: 0.0003959941542 | AI23: -9.092903329e-06 | AJ23: 0.001066507209 | AK23: 0.0006395498847 | AL23: 0.001452426463 | AM23: =1-(1-AM22/AM6)^4 -> 0.000824938071 | AN23: 0.0007232665084 | AO23: =1-(1-AO22/AO6)^4 -> 0.001407675194 | AP23: 0.003500779126 | AQ23: =1-(1-AQ22/AQ6)^4 -> 0.003097633955 | AR23: 0.000390418308 | AS23: 0.000612805744 | AT23: 0.003926853576 | AU23: 0.001448150599 | AV23: 0 | AW23: 7.806621315e-05 | AX23: =1-(1-AX22/AX6)^4 -> 0.001244452158 | AY23: 0 | AZ23: 0 | BA23: =1-(1-BA22/BA6)^4 -> 0.0007218097867 | BB23: 0.0003354910046 | BC23: =1-(1-BC22/BC6)^4 -> 0.0007293374409 | BD23: =1-(1-BD22/BD6)^4 -> 0.003886572627 | BE23: =1-(1-BE22/BE6)^4 -> 0.003568210227 | BF23: 0 | BG23: =1-(1-BG22/BG6)^4 -> 0.002520413398 | BH23: 0
A24: PDL Replenishment made during the quarter (-ve = recoveries) | B24: 0 | C24: 0 | D24: 0 | E24: 0 | F24: 1 | G24: 87 | H24: 40 | I24: 191 | J24: 66 | K24: 0 | L24: 168 | M24: 76 | N24: 326 | O24: 558 | P24: 231 | Q24: 481 | R24: 1194 | S24: 495 | T24: 579 | U24: 33 | V24: 185 | W24: 148 | X24: -84 | Y24: -43 | Z24: 252 | AA24: 36 | AB24: 147 | AC24: 116 | AD24: -102 | AE24: 29 | AF24: -182 | AG24: 101 | AH24: 44 | AI24: -1 | AJ24: 116 | AK24: 69 | AL24: 155 | AM24: 87 | AN24: 75 | AO24: 144 | AP24: 354 | AQ24: 306 | AR24: 38 | AS24: 59 | AT24: 373 | AU24: 135 | AV24: -17 | AW24: 7 | AX24: 110 | AY24: -35 | AZ24: -22 | BA24: 61 | BB24: 28 | BC24: 60 | BD24: 314 | BE24: 282 | BF24: -45 | BG24: 194 | BH24: -3
A25: Outstanding PDL at end of the quarter | B25: =B21+B22-B24 -> 0 | C25: 0 | D25: 0 | E25: 0 | F25: 0 | G25: 0 | H25: 0 | I25: 0 | J25: 0 | K25: 0 | L25: 0 | M25: 0 | N25: 0 | O25: 0 | P25: 0 | Q25: 0 | R25: 0 | S25: 0 | T25: 0 | U25: 0 | V25: 0 | W25: 0 | X25: 0 | Y25: 0 | Z25: =Z21+Z22-Z24 -> 0 | AA25: 0 | AB25: 0 | AC25: 0 | AD25: 0 | AE25: 0 | AF25: =AF21+AF22-AF24 -> 0 | AG25: 0 | AH25: 0 | AI25: 0 | AJ25: 0 | AK25: 0 | AL25: =AL21+AL22-AL24 -> 0 | AM25: 0 | AN25: =AN21+AN22-AN24 -> 0 | AO25: 0 | AP25: =AP21+AP22-AP24 -> 0 | AQ25: 0 | AR25: =AR21+AR22-AR24 -> 0 | AS25: 0 | AT25: =AT21+AT22-AT24 -> 0 | AU25: 0 | AV25: =AV21+AV22-AV24 -> 0 | AW25: 0 | AX25: =AX21+AX22-AX24 -> 0 | AY25: 0 | AZ25: =AZ21+AZ22-AZ24 -> 0 | BA25: 0 | BB25: =BB21+BB22-BB24 -> 0 | BC25: 0 | BD25: =BD21+BD22-BD24 -> 0 | BE25: 0 | BF25: =BF21+BF22-BF24 -> 0 | BG25: 0 | BH25: =BH21+BH22-BH24 -> 0
A26: Spread Trap repayment in the quarter | B26: N/A | C26: N/A | D26: N/A | E26: N/A | F26: N/A | G26: N/A | H26: N/A | I26: N/A | J26: N/A | K26: N/A | L26: N/A | M26: N/A | N26: N/A | O26: N/A | P26: N/A | Q26: N/A | R26: N/A | S26: N/A | T26: N/A | U26: N/A | V26: N/A | W26: N/A | X26: N/A | Y26: N/A | Z26: N/A | AA26: N/A | AB26: N/A | AC26: N/A | AD26: N/A | AE26: N/A | AF26: N/A | AG26: N/A | AH26: N/A | AI26: N/A | AJ26: N/A | AK26: N/A | AL26: N/A | AM26: N/A | AN26: N/A | AO26: N/A | AP26: N/A | AQ26: N/A | AR26: N/A | AS26: N/A | AT26: N/A | AU26: N/A | AV26: N/A | AW26: N/A | AX26: N/A | AY26: N/A | AZ26: N/A | BA26: N/A | BB26: N/A | BC26: N/A | BD26: N/A | BE26: N/A | BF26: N/A | BG26: N/A | BH26: N/A
A27: Spread % (WA Funding Rate less WA Interest Rate) | B27: 0.0066 | C27: 0.0069 | D27: 0.0056 | E27: 0.0035 | F27: 0.0014 | G27: 0.0021 | H27: 0.0005 | I27: -0.0019 | J27: -0.0003 | K27: 0.002 | L27: 0.0036 | M27: 0.0103 | N27: 0.016 | O27: 0.019 | P27: 0.0202 | Q27: 0.0221 | R27: 0.021 | S27: 0.0194 | T27: 0.0185 | U27: 0.0162 | V27: 0.0137 | W27: 0.0139 | X27: 0.0134 | Y27: 0.0132 | Z27: 0.0129 | AA27: 0.0131 | AB27: 0.0125 | AC27: 0.0126 | AD27: 0.0134 | AE27: 0.0131 | AF27: 0.0129 | AG27: 0.0129 | AH27: 0.0128 | AI27: 0.0128 | AJ27: 0.0125 | AK27: 0.0125 | AL27: 0.0125 | AM27: 0.0124 | AN27: 0.0124 | AO27: 0.0124 | AP27: 0.0125 | AQ27: 0.0125 | AR27: 0.0126 | AS27: 0.0126 | AT27: 0.0127 | AU27: 0.0129 | AV27: 0.0132 | AW27: 0.0128 | AX27: 0.013 | AY27: 0.0136 | AZ27: 0.0127 | BA27: 0.013 | BB27: 0.0128 | BC27: 0.0127 | BD27: 0.0124 | BE27: 0.0124 | BF27: 0.0123 | BG27: 0.01335297958 | BH27: 0
A28: Total Income as a % of the Mortgages | B28: 0.0203 | C28: 0.0149 | D28: 0.0158 | E28: 0.0158 | F28: 0.0171 | G28: 0.018 | H28: 0.0186 | I28: 0.0219 | J28: 0.0191 | K28: 0.0194 | L28: 0.0186 | M28: 0.018 | N28: 0.0148 | O28: 0.0117 | P28: 0.0092 | Q28: 0.0077 | R28: 0.0095 | S28: 0.0069 | T28: 0.0079 | U28: 0.0071 | V28: 0.0079 | W28: 0.007 | X28: 0.0075 | Y28: 0.0077 | Z28: 0.0081 | AA28: 0.0078 | AB28: 0.0078 | AC28: 0.0069 | AD28: 0.0069 | AE28: 0.0063 | AF28: 0.006 | AG28: 0.0071 | AH28: 0.0062 | AI28: 0.0065 | AJ28: 0.0064 | AK28: 0.0064 | AL28: 0.0069 | AM28: 0.0065 | AN28: 0.006 | AO28: 0.0062 | AP28: 0.0071 | AQ28: 0.0063 | AR28: 0.0069 | AS28: 0.006 | AT28: 0.0065 | AU28: 0.0062 | AV28: 0.0059 | AW28: 0.006 | AX28: 0.0064 | AY28: 0.0065 | AZ28: 0.0069 | BA28: 0.0072 | BB28: 0.0071 | BC28: 0.0061 | BD28: 0.0079 | BE28: 0.0071 | BF28: 0.0066 | BG28: 0.005863244307 | BH28: 0
A29: Quarterly surplus income to the Issuer | B29: 1890 | C29: 2321 | D29: 3058 | E29: 2938 | F29: 2829 | G29: 2708 | H29: 2097 | I29: 2904 | J29: 1180 | K29: 1945 | L29: 1160 | M29: 1207 | N29: 1713 | O29: 1146 | P29: 744 | Q29: 490 | R29: 808 | S29: 532 | T29: 980 | U29: 1142 | V29: 1541 | W29: 1018 | X29: 1482 | Y29: 1517 | Z29: 1136 | AA29: 1237 | AB29: 1240 | AC29: 1193 | AD29: 1591 | AE29: 1134 | AF29: 1278 | AG29: 1498 | AH29: 1153 | AI29: 1294 | AJ29: 1088 | AK29: 1155 | AL29: 1219 | AM29: 1111 | AN29: 892 | AO29: 862 | AP29: 1036 | AQ29: 727 | AR29: 1250 | AS29: 984 | AT29: 931 | AU29: 1025 | AV29: 1118 | AW29: 1062 | AX29: 918 | AY29: 998 | AZ29: 1044 | BA29: 970 | BB29: 881 | BC29: 506 | BD29: 893 | BE29: 626 | BF29: 741 | BG29: 565 | BH29: 19527
A30: Surplus Income as a % of the Mortgages | B30: =B29/1000353 -> 0.001889333065 | C30: =C29/B6 -> 0.00234572156 | D30: 0.003128750434 | E30: 0.003059275812 | F30: 0.003010551296 | G30: 0.002931792518 | H30: 0.002365733084 | I30: 0.003537537611 | J30: 0.001680258247 | K30: 0.003101895266 | L30: 0.001939452305 | M30: 0.002133096755 | N30: 0.003243396762 | O30: 0.00221966124 | P30: 0.001453721253 | Q30: 0.0009661549989 | R30: 0.001604658275 | S30: 0.001071254536 | T30: 0.00199013866 | U30: 0.002347823227 | V30: 0.003193696336 | W30: 0.002124932683 | X30: 0.003111503957 | Y30: 0.003199713144 | Z30: 0.002415782546 | AA30: 0.002650507925 | AB30: 0.002667073897 | AC30: 0.002582726259 | AD30: 0.003467749494 | AE30: 0.002483655836 | AF30: 0.002813026204 | AG30: 0.003313411575 | AH30: 0.002575885866 | AI30: 0.002911889465 | AJ30: 0.002473261272 | AK30: 0.0026558379 | AL30: 0.002825356356 | AM30: 0.002604073281 | AN30: 0.002115150873 | AO30: 0.002078749661 | AP30: 0.002533197857 | AQ30: 0.001799727689 | AR30: 0.003167114708 | AS30: 0.002527814956 | AT30: 0.002418022465 | AU30: 0.002701719612 | AV30: 0.002999837666 | AW30: 0.002884782009 | AX30: 0.002559531491 | AY30: 0.002823961957 | AZ30: 0.002993273735 | BA30: 0.00284240192 | BB30: 0.002606912389 | BC30: 0.001515891158 | BD30: 0.00271448559 | BE30: 0.001939927173 | BF30: 0.002347153457 | BG30: 0.001808262864 | BH30: 0
A31: Payment Holidays as a percentage of the Mortgages | B31: N/A | C31: N/A | D31: N/A | E31: N/A | F31: N/A | G31: N/A | H31: N/A | I31: N/A | J31: N/A | K31: N/A | L31: N/A | M31: N/A | N31: N/A | O31: N/A | P31: N/A | Q31: N/A | R31: N/A | S31: N/A | T31: N/A | U31: N/A | V31: N/A | W31: N/A | X31: N/A | Y31: N/A | Z31: N/A | AA31: N/A | AB31: N/A | AC31: N/A | AD31: N/A | AE31: N/A | AF31: N/A | AG31: N/A | AH31: N/A | AI31: N/A | AJ31: N/A | AK31: N/A | AL31: N/A | AM31: N/A | AN31: N/A | AO31: N/A | AP31: N/A | AQ31: N/A | AR31: N/A | AS31: N/A | AT31: N/A | AU31: N/A | AV31: N/A | AW31: N/A | AX31: N/A | AY31: N/A | AZ31: N/A | BA31: N/A | BB31: N/A | BC31: N/A | BD31: N/A | BE31: N/A | BF31: N/A | BG31: 0.2610448192 | BH31: 0
A32: Losses as a % of the Mortgages | B32: =+B22/1000353 -> 0 | C32: =+C22/B6 -> 0 | D32: 0 | E32: 0 | F32: 1.064175078e-06 | G32: 9.418978918e-05 | H32: 4.512604833e-05 | I32: 0.0002326686238 | J32: 9.398054603e-05 | K32: 0 | L32: 0.0002808861959 | M32: 0.0001343126374 | N32: 0.0006172488876 | O32: 0.001080777462 | P32: 0.0004513570019 | Q32: 0.0009484092948 | R32: 0.002371240075 | S32: 0.0009967499909 | T32: 0.001175806412 | U32: 6.784427888e-05 | V32: 0.0003834093589 | W32: 0.0003089293095 | X32: 0 | Y32: 0 | Z32: =+Z22/Y6 -> 0.0005358954238 | AA32: =+AA22/Z6 -> 7.713685149e-05 | AB32: =+AB22/AA6 -> 0.0003161773088 | AC32: =+AC22/AB6 -> 0.0002511284544 | AD32: 0 | AE32: =+AE22/AD6 -> 6.351500816e-05 | AF32: 0 | AG32: =+AG22/AF6 -> 0.000223400914 | AH32: 9.829920043e-05 | AI32: -2.250300978e-06 | AJ32: 0.0002636932974 | AK32: 0.000158660446 | AL32: 0.0003592536795 | AM32: 0.0002039193298 | AN32: 0.000177843403 | AO32: 0.0003472621244 | AP32: 0.0008655907736 | AQ32: 0.000757519495 | AR32: 9.628028712e-05 | AS32: 0.0001515661406 | AT32: 0.0009687673249 | AU32: 0.0003558362415 | AV32: -4.561470512e-05 | AW32: 1.901457068e-05 | AX32: 0.0003066976732 | AY32: 0 | AZ32: 0 | BA32: =+BA22/AZ6 -> 0.0001787489867 | BB32: 8.285306119e-05 | BC32: 0.0001797499397 | BD32: 0.0009544775759 | BE32: =+BE22/BD6 -> 0.0008738969054 | BF32: 0 | BG32: 0 | BH32: 0
A33: Number of Properties in Possession | B33: 0 | C33: 0 | D33: 0 | E33: =SUM(E90+E122) -> 0 | F33: 0 | G33: 0 | H33: 0 | I33: 0 | J33: 0 | K33: 0 | L33: 0 | M33: 0 | N33: 0 | O33: =SUM(O90+O122) -> 0 | P33: 0 | Q33: 0 | R33: =SUM(R90+R122) -> 0 | S33: 0 | T33: 0 | U33: =SUM(U90+U122) -> 0 | V33: 0 | W33: 0 | X33: =SUM(X90+X122) -> 0 | Y33: 0 | Z33: 0 | AA33: =SUM(AA90+AA122) -> 0 | AB33: 0 | AC33: 0 | AD33: =SUM(AD90+AD122) -> 0 | AE33: 0 | AF33: 0 | AG33: =SUM(AG90+AG122) -> 0 | AH33: 0 | AI33: 0 | AJ33: 0 | AK33: 0 | AL33: 0 | AM33: 0 | AN33: 0 | AO33: 0 | AP33: 0 | AQ33: 0 | AR33: 0 | AS33: =SUM(AS90+AS122) -> 0 | AT33: 0 | AU33: =SUM(AU90+AU122) -> 0 | AV33: 0 | AW33: =SUM(AW90+AW122) -> 0 | AX33: 0 | AY33: =SUM(AY90+AY122) -> 0 | AZ33: 0 | BA33: =SUM(BA90+BA122) -> 0 | BB33: 0 | BC33: =SUM(BC90+BC122) -> 0 | BD33: 0 | BE33: =SUM(BE90+BE122) -> 0 | BF33: 0 | BG33: =SUM(BG90+BG122) -> 0 | BH33: 0
A34: Appointment of a Receiver of Rent | B34: 5 | C34: 14 | D34: 25 | E34: =SUM(E91+E123) -> 28 | F34: 37 | G34: 37 | H34: 38 | I34: 41 | J34: 60 | K34: 42 | L34: 92 | M34: 138 | N34: 172 | O34: 172 | P34: 164 | Q34: 165 | R34: 116 | S34: 108 | T34: 98 | U34: 95 | V34: 107 | W34: 103 | X34: 105 | Y34: 117 | Z34: 110 | AA34: 115 | AB34: 114 | AC34: 111 | AD34: 106 | AE34: 104 | AF34: 104 | AG34: 98 | AH34: 96 | AI34: 99 | AJ34: 94 | AK34: 89 | AL34: 100 | AM34: 97 | AN34: 92 | AO34: 91 | AP34: 88 | AQ34: 79 | AR34: 78 | AS34: 77 | AT34: 74 | AU34: =SUM(AU91+AU123) -> 65 | AV34: 62 | AW34: =SUM(AW91+AW123) -> 63 | AX34: 60 | AY34: =SUM(AY91+AY123) -> 61 | AZ34: 66 | BA34: =SUM(BA91+BA123) -> 62 | BB34: 63 | BC34: =SUM(BC91+BC123) -> 62 | BD34: 58 | BE34: =SUM(BE91+BE123) -> 52 | BF34: 54 | BG34: =SUM(BG91+BG123) -> 50 | BH34: 0
A35: Average Number of months (Possessions) in Arrears at the Sale Date | B35: 0 | C35: 0 | D35: 0 | E35: 0 | F35: 0 | G35: 0 | H35: 0 | I35: 0 | J35: 0 | K35: 0 | L35: 0 | M35: 0 | N35: 0 | O35: 0 | P35: 0 | Q35: 0 | R35: 0 | S35: 0 | T35: 0 | U35: 0 | V35: 0 | W35: 0 | X35: 0 | Y35: 0 | Z35: 0 | AA35: 0 | AB35: 0 | AC35: 0 | AD35: 0 | AE35: 0 | AF35: 0 | AG35: 0 | AH35: 0 | AI35: 0 | AJ35: 0 | AK35: 0 | AL35: 0 | AM35: 1.64 | AN35: 0 | AO35: 0 | AP35: 0 | AQ35: 0 | AR35: 0 | AS35: 0 | AT35: 0 | AU35: 0 | AV35: 0 | AW35: 0 | AX35: 0 | AY35: 0 | AZ35: 0 | BA35: 0 | BB35: 0 | BC35: 0 | BD35: 0 | BE35: 0 | BF35: 0 | BG35: 0 | BH35: 0
A36: Average Number of months (RoR) in Arrears at the Sale Date | B36: 0 | C36: 0 | D36: 4.4 | E36: 7.36 | F36: 0 | G36: 8.29 | H36: 7.1 | I36: 8.58 | J36: 9.53 | K36: 5.99 | L36: 7.02 | M36: 11 | N36: 9.43 | O36: 13.99 | P36: 8.56 | Q36: 25.08 | R36: 13.22 | S36: 4.17 | T36: 12.03 | U36: 3.41 | V36: 4.84 | W36: 5.06 | X36: 13.96 | Y36: 3.75 | Z36: 0.1 | AA36: 1.19 | AB36: 15.09 | AC36: 4.61 | AD36: 0 | AE36: 0.5 | AF36: 0 | AG36: 0 | AH36: 0 | AI36: 0 | AJ36: 0.17 | AK36: 7.63 | AL36: 1.68 | AM36: 0 | AN36: 0.64 | AO36: 0.42 | AP36: 1.55 | AQ36: 2.63 | AR36: 0 | AS36: 0.33 | AT36: 1.02 | AU36: 0.85 | AV36: 2.55 | AW36: 0 | AX36: 3.47 | AY36: 0 | AZ36: 0 | BA36: 0 | BB36: 14.06 | BC36: 4.69 | BD36: 4.23 | BE36: 6.63 | BF36: 0 | BG36: 0 | BH36: 0
A37: Arrears excluding Receiver of Rent and Possession Cases
A38: Performing Loans | B38: 0.9914 | C38: 0.9918 | D38: 0.9916 | E38: 0.9938 | F38: 0.9916 | G38: 0.9916 | H38: 0.9857 | I38: 0.9856 | J38: 0.9834 | K38: 0.9802 | L38: 0.9766 | M38: 0.9719 | N38: 0.973 | O38: 0.9778 | P38: 0.9747 | Q38: 0.9795 | R38: 0.98 | S38: 0.988 | T38: 0.985 | U38: 0.9807 | V38: 0.9867 | W38: 0.9848 | X38: 0.9888 | Y38: 0.9913 | Z38: 0.9933 | AA38: 0.9882 | AB38: 0.9882 | AC38: 0.9901 | AD38: 0.9868 | AE38: 0.9963 | AF38: 0.9989 | AG38: 0.9977 | AH38: 0.9979 | AI38: 0.9992 | AJ38: 0.9996913944 | AK38: 0.9996184083 | AL38: 0.9989805646 | AM38: 0.9992518763 | AN38: 0.9972093924 | AO38: 0.9992657231 | AP38: 0.9969366879 | AQ38: 0.998153808 | AR38: 0.9988315712 | AS38: 0.9976313472 | AT38: 0.999389229 | AU38: 0.9989290672 | AV38: 0.999016867 | AW38: 0.9989377078 | AX38: 0.9976978745 | AY38: 0.9947055698 | AZ38: 0.9963527305 | BA38: 0.9960964915 | BB38: 0.9973821069 | BC38: 0.9913547436 | BD38: 0.9956952254 | BE38: 0.9958078371 | BF38: 0.981600223 | BG38: 0.9839744294 | BH38: 0
A39: >1 to 2 months arrears | B39: 0.0051 | C39: 0.0036 | D39: 0.0055 | E39: 0.0038 | F39: 0.0065 | G39: 0.0054 | H39: 0.0114 | I39: 0.0102 | J39: 0.0096 | K39: 0.0119 | L39: 0.0161 | M39: 0.0199 | N39: 0.0161 | O39: 0.0145 | P39: 0.0157 | Q39: 0.0145 | R39: 0.0155 | S39: 0.0081 | T39: 0.0121 | U39: 0.0158 | V39: 0.0121 | W39: 0.0133 | X39: 0.0098 | Y39: 0.0078 | Z39: 0.006 | AA39: 0.0114 | AB39: 0.0109 | AC39: 0.0096 | AD39: 0.0129 | AE39: 0.0031 | AF39: 0.0008 | AG39: 0.0022 | AH39: 0.0018 | AI39: 0.0007 | AJ39: 0 | AK39: 0.000381591695 | AL39: 0.001019435424 | AM39: 0.0004019866719 | AN39: 0.002113924131 | AO39: 0.0007342768917 | AP39: 0.001912713876 | AQ39: 0.0009355744226 | AR39: 0.0003748204053 | AS39: 0.00152201649 | AT39: 0 | AU39: 0.00107093283 | AV39: 0.0002548003953 | AW39: 0.001062292217 | AX39: 0.002113345607 | AY39: 0.005294430228 | AZ39: 0.0023622482 | BA39: 0.003512566269 | BB39: 0.002617893125 | BC39: 0.008645256405 | BD39: 0.0006074025107 | BE39: 0.0004870658152 | BF39: 0.01780798843 | BG39: 0.01303093858 | BH39: 0
A40: >2 to 3 months arrears | B40: 0.0035 | C40: 0.0032 | D40: 0.0027 | E40: 0.0023 | F40: 0.0013 | G40: 0.0009 | H40: 0.0024 | I40: 0.0036 | J40: 0.0064 | K40: 0.0074 | L40: 0.0061 | M40: 0.0065 | N40: 0.0071 | O40: 0.0035 | P40: 0.0056 | Q40: 0.0042 | R40: 0.0034 | S40: 0.0021 | T40: 0.0023 | U40: 0.003 | V40: 0.0012 | W40: 0.0019 | X40: 0.0014 | Y40: 0.0009 | Z40: 0.0007 | AA40: 0.0004 | AB40: 0.0009 | AC40: 0.0003 | AD40: 0.0003 | AE40: 0.0005 | AF40: 0 | AG40: 0 | AH40: 0.0002 | AI40: 0 | AJ40: 0 | AK40: 0 | AL40: 0 | AM40: 0.0003461370368 | AN40: 0 | AO40: 0 | AP40: 0.001150598247 | AQ40: 0.0002538523277 | AR40: 0.00079360843 | AS40: 0.0005865834022 | AT40: 0.0003470326593 | AU40: 0 | AV40: 0.000728332594 | AW40: 0 | AX40: 0.0001887798783 | AY40: 0 | AZ40: 0.001285021252 | BA40: 0.0003909421844 | BB40: 0 | BC40: 0 | BD40: 0.003697372095 | BE40: 0.003081837513 | BF40: 0.0001708346609 | BG40: 0.0005254268696 | BH40: 0
A41: >3 months arrears | B41: 0 | C41: 0.0014 | D41: 0.0002 | E41: 0.0001 | F41: 0.0006 | G41: 0.0021 | H41: 0.0005 | I41: 0.0006 | J41: 0.0006 | K41: 0.0005 | L41: 0.0012 | M41: 0.0017 | N41: 0.0038 | O41: 0.0042 | P41: 0.004 | Q41: 0.0018 | R41: 0.0011 | S41: 0.0018 | T41: 0.0006 | U41: 0.0005 | V41: 0 | W41: 0 | X41: 0 | Y41: 0 | Z41: 0 | AA41: 0 | AB41: 0 | AC41: 0 | AD41: 0 | AE41: 0.0001 | AF41: 0.0003 | AG41: 0.0001 | AH41: 0.0001 | AI41: 0.0001 | AJ41: 0.0003086056409 | AK41: 0 | AL41: 0 | AM41: 0 | AN41: 0.0006766834401 | AO41: 0 | AP41: 0 | AQ41: 0.0006567652348 | AR41: 0 | AS41: 0.0002600528928 | AT41: 0.0002637383414 | AU41: 0 | AV41: 0 | AW41: 0 | AX41: 0 | AY41: 0 | AZ41: 0 | BA41: 0 | BB41: 0 | BC41: 0 | BD41: 0 | BE41: 0.0006232595521 | BF41: 0.0004209539147 | BG41: 0.002469205114 | BH41: 0
A42: Total | B42: =SUM(B38:B41) -> 1 | C42: 1 | D42: 1 | E42: 1 | F42: 1 | G42: 1 | H42: 1 | I42: 1 | J42: 1 | K42: 1 | L42: 1 | M42: 1 | N42: 1 | O42: 1 | P42: 1 | Q42: 1 | R42: 1 | S42: 1 | T42: 1 | U42: 1 | V42: 1 | W42: 1 | X42: 1 | Y42: 1 | Z42: =SUM(Z38:Z41) -> 1 | AA42: 1 | AB42: 1 | AC42: 1 | AD42: 1 | AE42: 1 | AF42: =SUM(AF38:AF41) -> 1 | AG42: =SUM(AG38:AG41) -> 1 | AH42: =SUM(AH38:AH41) -> 1 | AI42: =SUM(AI38:AI41) -> 1 | AJ42: =SUM(AJ38:AJ41) -> 1 | AK42: 1 | AL42: 1 | AM42: 1 | AN42: 1 | AO42: 1 | AP42: 1 | AQ42: 1 | AR42: 1 | AS42: 1 | AT42: 1 | AU42: 1 | AV42: 1 | AW42: 1 | AX42: 1 | AY42: 1 | AZ42: 1 | BA42: 1 | BB42: 1 | BC42: 1 | BD42: 1 | BE42: 1 | BF42: 1 | BG42: 1 | BH42: =SUM(BH38:BH41) -> 0
A43: Total Value of Arrears (£000's) | B43: 151 | C43: 115 | D43: 226 | E43: 212 | F43: 328 | G43: 374 | H43: 429 | I43: 446 | J43: 573 | K43: 508 | L43: 721 | M43: 955 | N43: 797 | O43: 661 | P43: 684 | Q43: 514 | R43: 449 | S43: 361 | T43: 225 | U43: 202 | V43: 182 | W43: 157 | X43: 135 | Y43: 128 | Z43: 131 | AA43: 142 | AB43: 100 | AC43: 73 | AD43: 65 | AE43: 55 | AF43: 53 | AG43: 44 | AH43: 37 | AI43: 40 | AJ43: 36 | AK43: 26 | AL43: 27.89673141 | AM43: 19.6992708 | AN43: 25.9535799 | AO43: 25.70094975 | AP43: 26.92539044 | AQ43: 22.75670024 | AR43: 19.04526045 | AS43: 22.5350294 | AT43: 16.32826025 | AU43: 10.97748994 | AV43: 9.551469681 | AW43: 14.4121693 | AX43: 11.5037103 | AY43: 14.47699152 | AZ43: 25.49688975 | BA43: 35.96288947 | BB43: 47.84745029 | BC43: 48.65948967 | BD43: 29.14021143 | BE43: 15.75743024 | BF43: 24.81663869 | BG43: 26.86630119 | BH43: 0
A44: Total Value of Arrears as a % of the Notes Issued (£1,000,352,569) | B44: =+B43/1000353 -> 0.0001509467158 | C44: =+C43/1000353 -> 0.0001149594193 | D44: 0.0002259202502 | E44: 0.0002119251904 | F44: 0.0003278842569 | G44: 0.0003738680246 | H44: 0.0004288486164 | I44: 0.0004458426176 | J44: 0.0005727978024 | K44: 0.0005078207393 | L44: 0.0007207455768 | M44: 0.000954663004 | N44: 0.0007967187583 | O44: 0.0006607667493 | P44: 0.0006837586332 | Q44: 0.000513818622 | R44: 0.0004488415589 | S44: 0.000360872612 | T44: 0.000224920603 | U44: 0.0002019287192 | V44: 0.0001819357767 | W44: 0.0001569445986 | X44: 0.0001349523618 | Y44: 0.0001279548319 | Z44: =+Z43/1000353 -> 0.0001309537733 | AA44: 0.0001419498917 | AB44: 9.996471246e-05 | AC44: 7.297424009e-05 | AD44: 6.49770631e-05 | AE44: 5.498059185e-05 | AF44: =+AF43/1000353 -> 5.29812976e-05 | AG44: 4.398447348e-05 | AH44: 3.698694361e-05 | AI44: 3.998588498e-05 | AJ44: 3.598729648e-05 | AK44: 2.599082524e-05 | AL44: 2.788688734e-05 | AM44: =+AM43/1000353 -> 1.969231941e-05 | AN44: 2.594442152e-05 | AO44: =+AO43/1000353 -> 2.569188052e-05 | AP44: 2.691588913e-05 | AQ44: =+AQ43/1000353 -> 2.274866996e-05 | AR44: 1.903853985e-05 | AS44: =+AS43/1000353 -> 2.252707734e-05 | AT44: 1.632249841e-05 | AU44: =+AU43/1000353 -> 1.097361626e-05 | AV44: 9.548099202e-06 | AW44: =+AW43/1000353 -> 1.44070836e-05 | AX44: 1.149965093e-05 | AY44: =+AY43/1000353 -> 1.447188294e-05 | AZ44: 2.548789252e-05 | BA44: =+BA43/1000353 -> 3.595019905e-05 | BB44: 4.78305661e-05 | BC44: =+BC43/1000353 -> 4.864231894e-05 | BD44: 2.912992857e-05 | BE44: =+BE43/1000353 -> 1.575186983e-05 | BF44: 2.48078815e-05 | BG44: =+BG43/1000353 -> 2.685682074e-05 | BH44: 0
A46: Underlying Assets - Overall | B46: 2006-02-28 | C46: 2006-05-31 | D46: 2006-08-31 | E46: 2006-11-30 | F46: 2007-02-28 | G46: 2007-05-31 | H46: 2007-08-31 | I46: 2007-11-30 | J46: 2008-02-29 | K46: 2008-05-30 | L46: 2008-08-31 | M46: 2008-11-28 | N46: 2009-02-27 | O46: 2009-05-29 | P46: 2009-08-28 | Q46: 2009-11-30 | R46: 2010-02-26 | S46: 2010-05-28 | T46: 2010-08-31 | U46: 2010-11-30 | V46: 2011-02-28 | W46: 2011-05-31 | X46: 2011-08-31 | Y46: 2011-11-30 | Z46: 2012-02-29 | AA46: 2012-05-31 | AB46: 2012-08-31 | AC46: 2012-11-30 | AD46: 2013-02-28 | AE46: 2013-05-31 | AF46: 2013-08-30 | AG46: 2013-11-29 | AH46: 2014-02-28 | AI46: 2014-05-30 | AJ46: 2014-08-29 | AK46: 2014-11-28 | AL46: 2015-02-27 | AM46: 2015-05-29 | AN46: =+AN5 -> 2015-08-28 | AO46: 2015-11-30 | AP46: 2016-02-29 | AQ46: 2016-05-31 | AR46: 2016-08-31 | AS46: 2016-11-30 | AT46: =+AT5 -> 2017-02-28 | AU46: 2017-05-31 | AV46: =+AV5 -> 2017-08-31 | AW46: 2017-11-30 | AX46: =+AX5 -> 2018-02-28 | AY46: 2018-05-31 | AZ46: =+AZ5 -> 2018-08-31 | BA46: 2018-11-30 | BB46: =+BB5 -> 2019-02-28 | BC46: 2019-05-31 | BD46: =+BD5 -> 2019-08-30 | BE46: 2019-11-29 | BF46: =+BF5 -> 2020-02-28 | BG46: 2020-05-29 | BH46: =+BH5 -> 2020-08-28
A47: Weighted Average LTV | B47: 0.7889 | C47: 0.7895 | D47: 0.7902 | E47: 0.7912 | F47: 0.7919 | G47: 0.7921 | H47: 0.7919 | I47: 0.7914 | J47: 0.7928 | K47: 0.7933 | L47: 0.7949 | M47: 0.7948 | N47: 0.795 | O47: 0.7943 | P47: 0.794 | Q47: 0.7934 | R47: 0.7932 | S47: 0.7929 | T47: 0.7928 | U47: 0.793 | V47: 0.7928 | W47: 0.7925 | X47: 0.7922 | Y47: 0.7921 | Z47: 0.792 | AA47: 0.792 | AB47: 0.7923 | AC47: 0.7923 | AD47: 0.7919 | AE47: 0.7917 | AF47: 0.7914 | AG47: 0.7914 | AH47: 0.7913 | AI47: 0.7908 | AJ47: 0.7900290603 | AK47: 0.7896647713 | AL47: 0.7890317476 | AM47: 0.7892322559 | AN47: 0.7884372868 | AO47: 0.788465412 | AP47: 0.7886204055 | AQ47: 0.7885842733 | AR47: 0.7880591853 | AS47: 0.7878335513 | AT47: 0.7859484912 | AU47: 0.7847893139 | AV47: 0.7847942153 | AW47: 0.7851094844 | AX47: 0.784933482 | AY47: 0.783516588 | AZ47: 0.7816567258 | BA47: 0.7811070136 | BB47: 0.7800795517 | BC47: 0.7792393414 | BD47: 0.779163812 | BE47: 0.7779384431 | BF47: 0.7778289153 | BG47: 0.7780597592 | BH47: 0
A48: Weighted Average Nationwide Indexed LTV | B48: 0.7628 | C48: 0.7513 | D48: 0.7475 | E48: 0.7379 | F48: 0.7249 | G48: 0.713 | H48: 0.6929 | I48: 0.6875 | J48: 0.6932 | K48: 0.7116 | L48: 0.7405 | M48: 0.8003 | N48: 0.8289 | O48: 0.8701 | P48: 0.8516 | Q48: 0.8209 | R48: 0.8071 | S48: 0.8035 | T48: 0.7815 | U48: 0.782 | V48: 0.8071 | W48: 0.8048 | X48: 0.7888 | Y48: 0.7937 | Z48: 0.8014 | AA48: 0.8123 | AB48: 0.8026 | AC48: 0.8025 | AD48: 0.8117 | AE48: 0.8118 | AF48: 0.794 | AG48: 0.7744 | AH48: 0.7636 | AI48: 0.7594 | AJ48: 0.7288055278 | AK48: 0.7203443858 | AL48: 0.7215518596 | AM48: 0.7245270456 | AN48: 0.704442109 | AO48: 0.7023010768 | AP48: 0.7012076827 | AQ48: 0.696768485 | AR48: 0.676635117 | AS48: 0.6700142998 | AT48: 0.6697666779 | AU48: 0.6684602374 | AV48: 0.6563863977 | AW48: 0.6534775861 | AX48: 0.6535425381 | AY48: 0.6515452909 | AZ48: 0.6429479789 | BA48: 0.6375986466 | BB48: 0.6470257663 | BC48: 0.6518564561 | BD48: 0.6431040634 | BE48: 0.6367470576 | BF48: 0.642224698 | BG48: 0.6430252179 | BH48: 0
A49: Weighted Average Halifax Indexed LTV | B49: 0.7469 | C49: 0.7341 | D49: 0.7292 | E49: 0.724 | F49: 0.6987 | G49: 0.6826 | H49: 0.6672 | I49: 0.664 | J49: 0.6812 | K49: 0.701 | L49: 0.726 | M49: 0.7851 | N49: 0.8402 | O49: 0.8692 | P49: 0.8754 | Q49: 0.8513 | R49: 0.8299 | S49: 0.8276 | T49: 0.813 | U49: 0.826 | V49: 0.8368 | W49: 0.8536 | X49: 0.8462 | Y49: 0.8389 | Z49: 0.8484 | AA49: 0.8465 | AB49: 0.8495 | AC49: 0.8514 | AD49: 0.8556 | AE49: 0.8417 | AF49: 0.8175 | AG49: 0.8023 | AH49: 0.7981 | AI49: 0.7877 | AJ49: 0.7620388206 | AK49: 0.7390303896 | AL49: 0.7476010637 | AM49: 0.7291808472 | AN49: 0.6959661583 | AO49: 0.6901490753 | AP49: 0.6950041557 | AQ49: 0.6684947427 | AR49: 0.6484786767 | AS49: n/a | AT49: n/a | AU49: n/a | AV49: n/a | AW49: n/a | AX49: n/a | AY49: n/a | AZ49: n/a | BA49: n/a | BB49: n/a | BC49: n/a | BD49: n/a | BE49: n/a | BF49: n/a | BG49: n/a | BH49: n/a
A50: % of Variable Rate Mortgages | B50: 0.0075 | C50: 0.0071 | D50: 0.0043 | E50: 0.0044 | F50: 0.0042 | G50: 0.0037 | H50: 0.0032 | I50: 0.0033 | J50: 0.0032 | K50: 0.0031 | L50: 0.0032 | M50: 0.0032 | N50: 0.0032 | O50: 0.0043 | P50: 0.0042 | Q50: 0.0042 | R50: 0.0042 | S50: 0.0041 | T50: 0.0039 | U50: 0.0039 | V50: 0.0037 | W50: 0.0036 | X50: 0.0035 | Y50: 0.0034 | Z50: 0.0032 | AA50: 0.0032 | AB50: 0.0031 | AC50: 0.0027 | AD50: 0.0027 | AE50: 0.0025 | AF50: 0.0025 | AG50: 0.0021 | AH50: 0.002 | AI50: 0.002 | AJ50: 0.001913686219 | AK50: 0.001878194105 | AL50: 0.001881832384 | AM50: 0.001885748818 | AN50: 0.00187179494 | AO50: 0.001855255378 | AP50: 0.001859593364 | AQ50: 0.001647571298 | AR50: 0.001650535719 | AS50: 0.001648295841 | AT50: 0.001365626124 | AU50: 0.0011183229 | AV50: 0.001040445119 | AW50: 0.001050531178 | AX50: 0.001056860745 | AY50: 0.001061294568 | AZ50: 0.001074737923 | BA50: 0.001075099103 | BB50: 0.001077986602 | BC50: 0.0007483342511 | BD50: 0.0007535047771 | BE50: 0.0007604137989 | BF50: 0.0007108179543 | BG50: 0.0007111823294 | BH50: 0
A51: % of Fixed Rate Mortgages | B51: 0.7423 | C51: 0.745 | D51: 0.7501 | E51: 0.7471 | F51: 0.755 | G51: 0.635 | H51: 0.6243 | I51: 0.4768 | J51: 0.4763 | K51: 0.5241 | L51: 0.4451 | M51: 0.3082 | N51: 0.2859 | O51: 0.265 | P51: 0.2475 | Q51: 0.2409 | R51: 0.1965 | S51: 0.1493 | T51: 0.1265 | U51: 0.0468 | V51: 0.0359 | W51: 0.0291 | X51: 0.017 | Y51: 0.0162 | Z51: 0.015 | AA51: 0.0145 | AB51: 0.0146 | AC51: 0.0147 | AD51: 0.0147 | AE51: 0.0026 | AF51: 0 | AG51: 0 | AH51: 0 | AI51: 0 | AJ51: 0 | AK51: 0 | AL51: 0 | AM51: 0 | AN51: 0 | AO51: 0 | AP51: 0 | AQ51: 0 | AR51: 0 | AS51: 0 | AT51: 0 | AU51: 0 | AV51: 0 | AW51: 0 | AX51: 0 | AY51: 0 | AZ51: 0.009449438359 | BA51: 0.009542073785 | BB51: 0.009660725576 | BC51: 0.009802307549 | BD51: 0.00999317139 | BE51: 0.01021446253 | BF51: 0.01032060979 | BG51: 0.01048366625 | BH51: 0
A52: % of Base Rate Mortgages | B52: 0 | C52: 0 | D52: 0.0006 | E52: 0.0052 | F52: 0.0108 | G52: 0.0084 | H52: 0.0102 | I52: 0.0148 | J52: 0.0161 | K52: 0.016 | L52: 0.0175 | M52: 0.0186 | N52: 0.019 | O52: 0.0189 | P52: 0.0187 | Q52: 0.0188 | R52: 0.0191 | S52: 0.0192 | T52: 0.0194 | U52: 0.0196 | V52: 0.0197 | W52: 0.0194 | X52: 0.0195 | Y52: 0.0194 | Z52: 0.0195 | AA52: 0.0196 | AB52: 0.0195 | AC52: 0.0193 | AD52: 0.0194 | AE52: 0.0192 | AF52: 0.019 | AG52: 0.0189 | AH52: 0.019 | AI52: 0.0188 | AJ52: 0.01791633681 | AK52: 0.01779636417 | AL52: 0.01798412758 | AM52: 0.01766051899 | AN52: 0.01767404603 | AO52: 0.01790700278 | AP52: 0.01811486109 | AQ52: 0.01852457512 | AR52: 0.01797981651 | AS52: 0.01780280135 | AT52: 0.01733997016 | AU52: 0.01763033532 | AV52: 0.0169702434 | AW52: 0.01717151231 | AX52: 0.01679998788 | AY52: 0.01693648853 | AZ52: 0.01702154987 | BA52: 0.01709808841 | BB52: 0.01697361514 | BC52: 0.01673067214 | BD52: 0.01627713239 | BE52: 0.0166245785 | BF52: 0.01678415521 | BG52: 0.01688304019 | BH52: 0
A53: % of Libor Linked Mortgages | B53: 0.2502 | C53: 0.2479 | D53: 0.245 | E53: 0.2434 | F53: 0.23 | G53: 0.3529 | H53: 0.3623 | I53: 0.5051 | J53: 0.5045 | K53: 0.4568 | L53: 0.5342 | M53: 0.67 | N53: 0.6919 | O53: 0.7119 | P53: 0.7296 | Q53: 0.7361 | R53: 0.7803 | S53: 0.8274 | T53: 0.8501 | U53: 0.9297 | V53: 0.9407 | W53: 0.9479 | X53: 0.96 | Y53: 0.961 | Z53: 0.9623 | AA53: 0.9627 | AB53: 0.9628 | AC53: 0.9633 | AD53: 0.9632 | AE53: 0.9756 | AF53: 0.9785 | AG53: 0.979 | AH53: 0.979 | AI53: 0.9792 | AJ53: 0.980169977 | AK53: 0.9803254417 | AL53: 0.98013404 | AM53: 0.9804537322 | AN53: 0.980454159 | AO53: 0.9802377418 | AP53: 0.9800255455 | AQ53: 0.9798278536 | AR53: 0.9803696478 | AS53: 0.9805489028 | AT53: 0.9812944037 | AU53: 0.9812513418 | AV53: 0.9819893115 | AW53: 0.9817779565 | AX53: 0.9821431514 | AY53: 0.9820022169 | AZ53: 0.9724542739 | BA53: 0.9722847387 | BB53: 0.9722876727 | BC53: 0.9727186861 | BD53: 0.9729761914 | BE53: 0.9724005452 | BF53: 0.972184417 | BG53: 0.9719221112 | BH53: 0
A54: Weighted Average Loan Size | B54: 129901.68 | C54: 130806.49 | D54: 131286.18 | E54: 131998 | F54: 133246.78 | G54: 134283.58 | H54: 135754.92 | I54: 135338.86 | J54: 135078.84 | K54: 136336.23 | L54: 136315.03 | M54: 136086.12 | N54: 136441.74 | O54: 136513.91 | P54: 136371.43 | Q54: 136163.96 | R54: 135501.94 | S54: 135394.15 | T54: 135151.02 | U54: 135006.5 | V54: 134950.38 | W54: 134851.88 | X54: 134803.81 | Y54: 134431.36 | Z54: 134419.19 | AA54: 134372.49 | AB54: 134787.01 | AC54: 134782.35 | AD54: 134845.07 | AE54: 135011.96 | AF54: 134996.15 | AG54: 134660.89 | AH54: 134662.16 | AI54: 134486.52 | AJ54: 134641.15 | AK54: 134786.0082 | AL54: 134671.496 | AM54: 134519.7211 | AN54: 134459.2564 | AO54: 134352.5752 | AP54: 134247.4353 | AQ54: 133609.0032 | AR54: 133907.6526 | AS54: 133735.8014 | AT54: 133775.9357 | AU54: 133579.5101 | AV54: 133819.9692 | AW54: 132886.0277 | AX54: 132808.7915 | AY54: 132818.936 | AZ54: 132425.563 | BA54: 132269.1516 | BB54: 132196.8524 | BC54: 132384.6176 | BD54: 132577.0444 | BE54: 131927.1026 | BF54: 131948.7215 | BG54: 131788.7092 | BH54: 0
A55: Weighted Average Interest Rate | B55: 0.05396 | C55: 0.05384 | D55: 0.05406 | E55: 0.05485 | F55: 0.05542 | G55: 0.05848 | H55: 0.06014 | I55: 0.06739 | J55: 0.06597 | K55: 0.06358 | L55: 0.06522 | M55: 0.06951 | N55: 0.04951 | O55: 0.03962 | P55: 0.03495 | Q55: 0.03039 | R55: 0.02929 | S55: 0.02805 | T55: 0.02802 | U55: 0.02568 | V55: 0.02546 | W55: 0.02615 | X55: 0.02581 | Y55: 0.02663 | Z55: 0.02774 | AA55: 0.02777 | AB55: 0.0263 | AC55: 0.02336 | AD55: 0.02282 | AE55: 0.02239 | AF55: 0.02228 | AG55: 0.02231 | AH55: 0.02232 | AI55: 0.02233 | AJ55: 0.02234885139 | AK55: 0.02245824527 | AL55: 0.02242283825 | AM55: 0.02244134184 | AN55: 0.02250471303 | AO55: 0.02263538795 | AP55: 0.02278315197 | AQ55: 0.02284361716 | AR55: 0.02283324368 | AS55: 0.02088892673 | AT55: 0.02089565414 | AU55: 0.02081010826 | AV55: 0.02062544398 | AW55: 0.02060920025 | AX55: 0.02274811926 | AY55: 0.02426321945 | AZ55: 0.02369584408 | BA55: 0.02562646704 | BB55: 0.02658579959 | BC55: 0.02583947713 | BD55: 0.02500147587 | BE55: 0.02495530173 | BF55: 0.02499159618 | BG55: 0.02297776576 | BH55: 0
A56: Weighted Average Maturity Date (years) | B56: 21.21 | C56: 20.97 | D56: 20.76 | E56: 20.53 | F56: 20.31 | G56: 20.11 | H56: 19.87 | I56: 19.55 | J56: 19.32 | K56: 19.09 | L56: 18.82 | M56: 18.55 | N56: 18.33 | O56: 18.09 | P56: 17.87 | Q56: 17.63 | R56: 17.36 | S56: 17.14 | T56: 16.91 | U56: 16.66 | V56: 16.41 | W56: 16.17 | X56: 15.91 | Y56: 15.7 | Z56: 15.45 | AA56: 15.21 | AB56: 14.97 | AC56: 14.73 | AD56: 14.49 | AE56: 14.25 | AF56: 14.01 | AG56: 13.78 | AH56: 13.56 | AI56: 13.32 | AJ56: 13.09540247 | AK56: 12.87654338 | AL56: 12.6498855 | AM56: 12.43029709 | AN56: 12.25978948 | AO56: 12.03180834 | AP56: 11.82757594 | AQ56: 11.57677028 | AR56: 11.35509084 | AS56: 11.12835182 | AT56: 10.90541374 | AU56: 10.67272357 | AV56: 10.43732988 | AW56: 10.22213372 | AX56: 9.997658221 | AY56: 9.803233225 | AZ56: 9.729515293 | BA56: 9.494021591 | BB56: 9.260654365 | BC56: 9.057105532 | BD56: 8.863169143 | BE56: 8.646205472 | BF56: 8.427994702 | BG56: 8.238868071 | BH56: 0
A57: Weighted Average Seasoning (months) | B57: 11.08 | C57: 13.95 | D57: 15.87 | E57: 19.82 | F57: 22.67 | G57: 25.62 | H57: 28.58 | I57: 32.06 | J57: 35.41 | K57: 38.53 | L57: 40.59 | M57: 44.76 | N57: 47.78 | O57: 50.82 | P57: 53.86 | Q57: 56.86 | R57: 59.88 | S57: 62.9 | T57: 65.94 | U57: 68.91 | V57: 71.81 | W57: 74.8 | X57: 77.81 | Y57: 80.8 | Z57: 83.77 | AA57: 86.78 | AB57: 89.78 | AC57: 92.75 | AD57: 95.69 | AE57: 98.66 | AF57: 101.65 | AG57: 104.61 | AH57: 107.55 | AI57: 110.58 | AJ57: 113.525829 | AK57: 116.4779182 | AL57: 119.4497642 | AM57: 122.4693807 | AN57: 125.4056429 | AO57: 128.4443718 | AP57: 131.4398949 | AQ57: 134.4161432 | AR57: 137.2873858 | AS57: 140.169213 | AT57: 143.1340054 | AU57: 146.1183789 | AV57: 149.1714857 | AW57: 152.0989184 | AX57: 155.0695635 | AY57: 158.0102856 | AZ57: 161.0820135 | BA57: 164.0927552 | BB57: 167.0129923 | BC57: 169.918265 | BD57: 172.9236851 | BE57: 175.9620681 | BF57: 178.9729051 | BG57: 182.0494069 | BH57: 0
A58: % of Interest Only Mortgages | B58: 0.9235 | C58: 0.923 | D58: 0.9234 | E58: 0.9244 | F58: 0.9264 | G58: 0.9275 | H58: 0.927 | I58: 0.9256 | J58: 0.9272 | K58: 0.9297 | L58: 0.9317 | M58: 0.9354 | N58: 0.9371 | O58: 0.9395 | P58: 0.94 | Q58: 0.9413 | R58: 0.9423 | S58: 0.9423 | T58: 0.9432 | U58: 0.944 | V58: 0.9443 | W58: 0.9447 | X58: 0.9455 | Y58: 0.9469 | Z58: 0.9487 | AA58: 0.95 | AB58: 0.9511 | AC58: 0.953 | AD58: 0.9553 | AE58: 0.9555 | AF58: 0.9564 | AG58: 0.9571 | AH58: 0.9578 | AI58: 0.9579 | AJ58: 0.9585951916 | AK58: 0.9587404603 | AL58: 0.9597648878 | AM58: 0.9604368589 | AN58: 0.960172902 | AO58: 0.9606154135 | AP58: 0.9617100019 | AQ58: 0.9632822163 | AR58: 0.9632514257 | AS58: 0.9638911862 | AT58: 0.9645455087 | AU58: 0.9646535805 | AV58: 0.9653885375 | AW58: 0.9662623694 | AX58: 0.9682303064 | AY58: 0.9693511015 | AZ58: 0.9699483767 | BA58: 0.9702107773 | BB58: 0.9708090647 | BC58: 0.9721630184 | BD58: 0.972981747 | BE58: 0.9735855245 | BF58: 0.9748663225 | BG58: 0.9756858485 | BH58: 0
A59: % of Repayment Mortgages | B59: 0.0765 | C59: 0.077 | D59: 0.0766 | E59: 0.0756 | F59: 0.0736 | G59: 0.0725 | H59: 0.073 | I59: 0.0744 | J59: 0.0728 | K59: 0.0703 | L59: 0.0683 | M59: 0.0646 | N59: 0.0629 | O59: 0.0605 | P59: 0.06 | Q59: 0.0587 | R59: 0.0577 | S59: 0.0577 | T59: 0.0568 | U59: 0.056 | V59: 0.0557 | W59: 0.0553 | X59: 0.0545 | Y59: 0.0531 | Z59: 0.0513 | AA59: 0.05 | AB59: 0.0489 | AC59: 0.047 | AD59: 0.0447 | AE59: 0.0445 | AF59: 0.0436 | AG59: 0.0429 | AH59: 0.0422 | AI59: 0.0421 | AJ59: 0.04140480837 | AK59: 0.04125953971 | AL59: 0.04023511223 | AM59: 0.03956314113 | AN59: 0.03982709803 | AO59: 0.03938458652 | AP59: 0.03828999814 | AQ59: 0.03671778374 | AR59: 0.03674857434 | AS59: 0.03610881375 | AT59: 0.03545449129 | AU59: 0.03534641947 | AV59: 0.03461146245 | AW59: 0.03373763063 | AX59: 0.03176969363 | AY59: 0.03064889855 | AZ59: 0.03005162326 | BA59: 0.02978922273 | BB59: 0.02919093525 | BC59: 0.02783698164 | BD59: 0.02701825296 | BE59: 0.02641447546 | BF59: 0.02513367754 | BG59: 0.02431415148 | BH59: 0
A60: % of Mortgages in London | B60: 0.222 | C60: 0.2233 | D60: 0.2216 | E60: 0.2222 | F60: 0.2235 | G60: 0.217 | H60: 0.2146 | I60: 0.1947 | J60: 0.1834 | K60: 0.1834 | L60: 0.1783 | M60: 0.1713 | N60: 0.1698 | O60: 0.1695 | P60: 0.1686 | Q60: 0.1672 | R60: 0.1645 | S60: 0.1633 | T60: 0.1627 | U60: 0.1586 | V60: 0.1576 | W60: 0.1569 | X60: 0.1564 | Y60: 0.1531 | Z60: 0.1528 | AA60: 0.1528 | AB60: 0.152 | AC60: 0.1514 | AD60: 0.1516 | AE60: 0.1513 | AF60: 0.1513 | AG60: 0.1492 | AH60: 0.1467 | AI60: 0.145 | AJ60: 0.1437656397 | AK60: 0.1435635044 | AL60: 0.1431469202 | AM60: 0.142142207 | AN60: 0.1402663759 | AO60: 0.1389964777 | AP60: 0.1373864452 | AQ60: 0.1332474876 | AR60: 0.1294774887 | AS60: 0.128799573 | AT60: 0.1266068716 | AU60: 0.1264358976 | AV60: 0.1264153548 | AW60: 0.1253416388 | AX60: 0.1236429285 | AY60: 0.1246367377 | AZ60: 0.1227257111 | BA60: 0.1199148234 | BB60: 0.1197641271 | BC60: 0.1201636589 | BD60: 0.1208007519 | BE60: 0.1225123984 | BF60: 0.1224083768 | BG60: 0.1195620407 | BH60: 0
A61: % of Mortgages in the South East | B61: 0.2792 | C61: 0.2779 | D61: 0.2784 | E61: 0.2784 | F61: 0.2797 | G61: 0.2809 | H61: 0.2727 | I61: 0.2637 | J61: 0.2572 | K61: 0.2523 | L61: 0.2515 | M61: 0.2501 | N61: 0.2505 | O61: 0.2502 | P61: 0.2487 | Q61: 0.2491 | R61: 0.2514 | S61: 0.2513 | T61: 0.2503 | U61: 0.2514 | V61: 0.2508 | W61: 0.2494 | X61: 0.2486 | Y61: 0.2487 | Z61: 0.2486 | AA61: 0.2481 | AB61: 0.2486 | AC61: 0.2493 | AD61: 0.2486 | AE61: 0.2475 | AF61: 0.2472 | AG61: 0.2467 | AH61: 0.2467 | AI61: 0.2448 | AJ61: 0.2430774799 | AK61: 0.2434234972 | AL61: 0.2407835762 | AM61: 0.2383165724 | AN61: 0.2383070305 | AO61: 0.2360757269 | AP61: 0.2342188064 | AQ61: 0.2336721007 | AR61: 0.2345606013 | AS61: 0.2334976411 | AT61: 0.2324049277 | AU61: 0.2316362362 | AV61: 0.2302612418 | AW61: 0.2318495668 | AX61: 0.2298291973 | AY61: 0.226590051 | AZ61: 0.2278466121 | BA61: 0.2280575726 | BB61: 0.2273130342 | BC61: 0.2262516948 | BD61: 0.2245139989 | BE61: 0.223072731 | BF61: 0.2203522119 | BG61: 0.2177721752 | BH61: 0
A62: % of Owner Occupied Mortgages | B62: 0 | C62: 0 | D62: 0.0002 | E62: 0 | F62: 0 | G62: 0 | H62: 0 | I62: 0 | J62: 0 | K62: 0 | L62: 0 | M62: 0 | N62: 0 | O62: 0 | P62: 0 | Q62: 0 | R62: 0 | S62: 0 | T62: 0 | U62: 0 | V62: 0 | W62: 0 | X62: 0 | Y62: 0 | Z62: 0 | AA62: 0 | AB62: 0 | AC62: 0 | AD62: 0 | AE62: 0 | AF62: 0 | AG62: 0 | AH62: 0 | AI62: 0 | AJ62: 0 | AK62: 0 | AL62: 0 | AM62: 0 | AN62: 0 | AO62: 0 | AP62: 0 | AQ62: 0 | AR62: 0 | AS62: 0 | AT62: 0 | AU62: 0 | AV62: 0 | AW62: 0 | AX62: 0 | AY62: 0 | AZ62: 0 | BA62: 0 | BB62: 0 | BC62: 0 | BD62: 0 | BE62: 0 | BF62: 0 | BG62: 0 | BH62: 0
A63: % of Investment Home Loans - Professional Landlords | B63: 0.6099 | C63: 0.6084 | D63: 0.6085 | E63: 0.6088 | F63: 0.6085 | G63: 0.6133 | H63: 0.6279 | I63: 0.6696 | J63: 0.7067 | K63: 0.721 | L63: 0.7294 | M63: 0.7347 | N63: 0.7327 | O63: 0.733 | P63: 0.7361 | Q63: 0.7373 | R63: 0.7371 | S63: 0.7385 | T63: 0.7404 | U63: 0.7409 | V63: 0.7422 | W63: 0.7444 | X63: 0.7446 | Y63: 0.745 | Z63: 0.7465 | AA63: 0.7472 | AB63: 0.749 | AC63: 0.7494 | AD63: 0.7502 | AE63: 0.7509 | AF63: 0.7518 | AG63: 0.7529 | AH63: 0.7529 | AI63: 0.7542 | AJ63: 0.7553953224 | AK63: 0.7572909389 | AL63: 0.7608599152 | AM63: 0.7654499404 | AN63: 0.768735508 | AO63: 0.7697058213 | AP63: 0.7707265395 | AQ63: 0.772052804 | AR63: 0.7731215184 | AS63: 0.7737814465 | AT63: 0.7747861321 | AU63: 0.7735116995 | AV63: 0.7755033224 | AW63: 0.77837367 | AX63: 0.7811633601 | AY63: 0.7830267066 | AZ63: 0.7832449009 | BA63: 0.7833968793 | BB63: 0.7839716107 | BC63: 0.7844880903 | BD63: 0.7858570225 | BE63: 0.7881162105 | BF63: 0.789543245 | BG63: 0.7931838762 | BH63: 0
A64: % of Investment Home Loans - Emerging Professional Landlords | B64: 0.3901 | C64: 0.3916 | D64: 0.3913 | E64: 0.3912 | F64: 0.3915 | G64: 0.3867 | H64: 0.3721 | I64: 0.3304 | J64: 0.2933 | K64: 0.279 | L64: 0.2706 | M64: 0.2653 | N64: 0.2673 | O64: 0.267 | P64: 0.2639 | Q64: 0.2627 | R64: 0.2629 | S64: 0.2615 | T64: 0.2596 | U64: 0.2591 | V64: 0.2578 | W64: 0.2556 | X64: 0.2554 | Y64: 0.255 | Z64: 0.2535 | AA64: 0.2528 | AB64: 0.251 | AC64: 0.2506 | AD64: 0.2498 | AE64: 0.2491 | AF64: 0.2482 | AG64: 0.2471 | AH64: 0.2471 | AI64: 0.2458 | AJ64: 0.2446046776 | AK64: 0.2427090611 | AL64: 0.2391400848 | AM64: 0.2345500596 | AN64: 0.231264492 | AO64: 0.2302941787 | AP64: 0.2292734605 | AQ64: 0.227947196 | AR64: 0.2268784816 | AS64: 0.2262185535 | AT64: 0.2252138679 | AU64: 0.2264883005 | AV64: 0.2244966776 | AW64: 0.22162633 | AX64: 0.2188366399 | AY64: 0.2169732934 | AZ64: 0.2167550991 | BA64: 0.2166031207 | BB64: 0.2160283893 | BC64: 0.2155119097 | BD64: 0.2141429775 | BE64: 0.2118837895 | BF64: 0.210456755 | BG64: 0.2068161238 | BH64: 0
A65: Weighted Average Interest Coverage Ratio (calculated at the origination date) | B65: 1.72 | C65: 1.72 | D65: 1.72 | E65: 1.72 | F65: 1.71 | G65: 1.71 | H65: 1.72 | I65: 1.73 | J65: 1.75 | K65: 1.74 | L65: 1.75 | M65: 1.75 | N65: 1.76 | O65: 1.75 | P65: 1.75 | Q65: 1.75 | R65: 1.75 | S65: 1.75 | T65: 1.74 | U65: 1.74 | V65: 1.74 | W65: 1.74 | X65: 1.74 | Y65: 1.74 | Z65: 1.74 | AA65: 1.74 | AB65: 1.73 | AC65: 1.73 | AD65: 1.73 | AE65: 1.72 | AF65: 1.72 | AG65: 1.73 | AH65: 1.73 | AI65: 1.73 | AJ65: 1.728641589 | AK65: 1.728051793 | AL65: 1.72876134 | AM65: 1.72775258 | AN65: 1.727430963 | AO65: 1.729935424 | AP65: 1.725192482 | AQ65: 1.717073823 | AR65: 1.71899438 | AS65: 1.720102428 | AT65: 1.721916555 | AU65: 1.720987306 | AV65: 1.719960842 | AW65: 1.72275771 | AX65: 1.718368007 | AY65: 1.71586005 | AZ65: 1.717932269 | BA65: 1.718915479 | BB65: 1.716998285 | BC65: 1.718658987 | BD65: 1.720182009 | BE65: 1.718882177 | BF65: 1.719362118 | BG65: 1.717030315 | BH65: 0
A66: % of Paragon Originated Assets | B66: 0.4952 | C66: 0.4925 | D66: 0.4918 | E66: 0.4906 | F66: 0.4911 | G66: 0.5021 | H66: 0.519 | I66: 0.5762 | J66: 0.6199 | K66: 0.6413 | L66: 0.6443 | M66: 0.6497 | N66: 0.6472 | O66: 0.6475 | P66: 0.6502 | Q66: 0.6515 | R66: 0.6517 | S66: 0.6534 | T66: 0.6556 | U66: 0.6561 | V66: 0.6565 | W66: 0.6583 | X66: 0.6583 | Y66: 0.6588 | Z66: 0.6593 | AA66: 0.6596 | AB66: 0.6611 | AC66: 0.6614 | AD66: 0.662 | AE66: 0.6631 | AF66: 0.6634 | AG66: 0.6658 | AH66: 0.6677 | AI66: 0.6687 | AJ66: 0.6709666728 | AK66: 0.6726712547 | AL66: 0.6749016502 | AM66: 0.6779032604 | AN66: 0.6804005317 | AO66: 0.6816057764 | AP66: 0.682657393 | AQ66: 0.6824610051 | AR66: 0.6836954123 | AS66: 0.6839381032 | AT66: 0.6840486401 | AU66: 0.6836989947 | AV66: 0.6855999851 | AW66: 0.6848083918 | AX66: 0.6873931538 | AY66: 0.6878024862 | AZ66: 0.6866356485 | BA66: 0.6903201128 | BB66: 0.6909717716 | BC66: 0.6914476956 | BD66: 0.6935315363 | BE66: 0.6940821191 | BF66: 0.6948406352 | BG66: 0.6969027342 | BH66: 0
A67: % of Mortgage Trust Originated Assets | B67: 0.5048 | C67: 0.5075 | D67: 0.5082 | E67: 0.5094 | F67: 0.5089 | G67: 0.4979 | H67: 0.481 | I67: 0.4238 | J67: 0.3801 | K67: 0.3587 | L67: 0.3557 | M67: 0.3503 | N67: 0.3528 | O67: 0.3525 | P67: 0.3498 | Q67: 0.3485 | R67: 0.3483 | S67: 0.3466 | T67: 0.3444 | U67: 0.3439 | V67: 0.3435 | W67: 0.3417 | X67: 0.3417 | Y67: 0.3412 | Z67: 0.3407 | AA67: 0.3404 | AB67: 0.3389 | AC67: 0.3386 | AD67: 0.338 | AE67: 0.3369 | AF67: 0.3366 | AG67: 0.3342 | AH67: 0.3323 | AI67: 0.3313 | AJ67: 0.3290333272 | AK67: 0.3273287453 | AL67: 0.3250983498 | AM67: 0.3220967396 | AN67: 0.3195994683 | AO67: 0.3183942236 | AP67: 0.317342607 | AQ67: 0.3175389949 | AR67: 0.3163045877 | AS67: 0.3160618968 | AT67: 0.3159513599 | AU67: 0.3163010053 | AV67: 0.3144000149 | AW67: 0.3151916082 | AX67: 0.3126068462 | AY67: 0.3121975138 | AZ67: 0.3133643515 | BA67: 0.3096798872 | BB67: 0.3090282284 | BC67: 0.3085523044 | BD67: 0.3064684637 | BE67: 0.3059178809 | BF67: 0.3051593648 | BG67: 0.3030972658 | BH67: 0
A69: Underlying Assets - Paragon Originated Assets | B69: 2006-02-28 | C69: 2006-05-31 | D69: 2006-08-31 | E69: 2006-11-30 | F69: 2007-02-28 | G69: 2007-05-31 | H69: 2007-08-31 | I69: 2007-11-30 | J69: 2008-02-29 | K69: 2008-05-30 | L69: 2008-08-31 | M69: 2008-11-28 | N69: 2009-02-27 | O69: 2009-05-29 | P69: 2009-08-28 | Q69: 2009-11-30 | R69: 2010-02-26 | S69: 2010-05-28 | T69: 2010-08-31 | U69: 2010-11-30 | V69: 2011-02-28 | W69: 2011-05-31 | X69: 2011-08-31 | Y69: 2011-11-30 | Z69: 2012-02-29 | AA69: 2012-05-31 | AB69: 2012-08-31 | AC69: 2012-11-30 | AD69: 2013-02-28 | AE69: 2013-05-31 | AF69: 2013-08-30 | AG69: 2013-11-29 | AH69: 2014-02-28 | AI69: 2014-05-30 | AJ69: 2014-08-29 | AK69: 2014-11-28 | AL69: 2015-02-27 | AM69: =+AM46 -> 2015-05-29 | AN69: 2015-08-28 | AO69: 2015-11-30 | AP69: 2016-02-29 | AQ69: 2016-05-31 | AR69: 2016-08-31 | AS69: =+AS46 -> 2016-11-30 | AT69: 2017-02-28 | AU69: =+AU46 -> 2017-05-31 | AV69: 2017-08-31 | AW69: =+AW46 -> 2017-11-30 | AX69: 2018-02-28 | AY69: =+AY46 -> 2018-05-31 | AZ69: 2018-08-31 | BA69: =+BA46 -> 2018-11-30 | BB69: 2019-02-28 | BC69: =+BC46 -> 2019-05-31 | BD69: 2019-08-30 | BE69: =+BE46 -> 2019-11-29 | BF69: 2020-02-28 | BG69: =+BG46 -> 2020-05-29 | BH69: 2020-08-28
A70: Weighted Average LTV | B70: 0.7896 | C70: 0.791 | D70: 0.7921 | E70: 0.7938 | F70: 0.7948 | G70: 0.796 | H70: 0.7955 | I70: 0.7952 | J70: 0.7962 | K70: 0.7965 | L70: 0.7975 | M70: 0.7967 | N70: 0.7974 | O70: 0.7969 | P70: 0.7969 | Q70: 0.7963 | R70: 0.7964 | S70: 0.7962 | T70: 0.796 | U70: 0.796 | V70: 0.7956 | W70: 0.7955 | X70: 0.7953 | Y70: 0.7954 | Z70: 0.7956 | AA70: 0.7955 | AB70: 0.796 | AC70: 0.7963 | AD70: 0.7961 | AE70: 0.7959 | AF70: 0.7957 | AG70: 0.7954 | AH70: 0.7956 | AI70: 0.7953 | AJ70: 0.7951038499 | AK70: 0.7949212131 | AL70: 0.7943135584 | AM70: 0.7942446036 | AN70: 0.7932059291 | AO70: 0.7935888113 | AP70: 0.7938238554 | AQ70: 0.7940255781 | AR70: 0.7933030459 | AS70: 0.7929396137 | AT70: 0.7907457106 | AU70: 0.7897521805 | AV70: 0.7898855245 | AW70: 0.7909018691 | AX70: 0.7902437828 | AY70: 0.7883587962 | AZ70: 0.7856051648 | BA70: 0.7848072031 | BB70: 0.7839014698 | BC70: 0.7830748292 | BD70: 0.7832457246 | BE70: 0.782043709 | BF70: 0.7819995429 | BG70: 0.7824310708 | BH70: 0
A71: Weighted Average Nationwide Indexed LTV | B71: 0.7366 | C71: 0.7278 | D71: 0.739 | E71: 0.7319 | F71: 0.7228 | G71: 0.7154 | H71: 0.6967 | I71: 0.6926 | J71: 0.6988 | K71: 0.7183 | L71: 0.7468 | M71: 0.804 | N71: 0.8365 | O71: 0.8771 | P71: 0.8646 | Q71: 0.8346 | R71: 0.8204 | S71: 0.8183 | T71: 0.7933 | U71: 0.7969 | V71: 0.8236 | W71: 0.8209 | X71: 0.8069 | Y71: 0.8129 | Z71: 0.8223 | AA71: 0.8331 | AB71: 0.8242 | AC71: 0.8246 | AD71: 0.8343 | AE71: 0.8351 | AF71: 0.8175 | AG71: 0.7979 | AH71: 0.7892 | AI71: 0.7892 | AJ71: 0.7603181826 | AK71: 0.7514681185 | AL71: 0.7523877933 | AM71: 0.7550906237 | AN71: 0.7348416571 | AO71: 0.7341456149 | AP71: 0.7337541809 | AQ71: 0.729667673 | AR71: 0.7091698569 | AS71: 0.7013411872 | AT71: 0.7016680954 | AU71: 0.7004623355 | AV71: 0.6874415098 | AW71: 0.6836374452 | AX71: 0.6829689368 | AY71: 0.6813628136 | AZ71: 0.6713589019 | BA71: 0.6647069794 | BB71: 0.6764583198 | BC71: 0.6809343279 | BD71: 0.6726028367 | BE71: 0.6647718269 | BF71: 0.6704789039 | BG71: 0.6727532262 | BH71: 0
A72: Weighted Average Halifax Indexed LTV | B72: 0.7221 | C72: 0.7132 | D72: 0.7216 | E72: 0.7197 | F72: 0.6984 | G72: 0.6863 | H72: 0.6737 | I72: 0.6718 | J72: 0.6864 | K72: 0.7076 | L72: 0.7326 | M72: 0.7932 | N72: 0.8495 | O72: 0.8757 | P72: 0.8881 | Q72: 0.8653 | R72: 0.8439 | S72: 0.8439 | T72: 0.8277 | U72: 0.8391 | V72: 0.8512 | W72: 0.8726 | X72: 0.8651 | Y72: 0.8575 | Z72: 0.8724 | AA72: 0.8669 | AB72: 0.872 | AC72: 0.8755 | AD72: 0.8796 | AE72: 0.8666 | AF72: 0.8413 | AG72: 0.8262 | AH72: 0.8231 | AI72: 0.8157 | AJ72: 0.7907918007 | AK72: 0.7695945036 | AL72: 0.7785805338 | AM72: 0.7571142846 | AN72: 0.7230578447 | AO72: 0.7190097248 | AP72: 0.7253181919 | AQ72: 0.6992821245 | AR72: 0.6772581797 | AS72: n/a | AT72: n/a | AU72: n/a | AV72: n/a | AW72: n/a | AX72: n/a | AY72: n/a | AZ72: n/a | BA72: n/a | BB72: n/a | BC72: n/a | BD72: n/a | BE72: n/a | BF72: n/a | BG72: n/a | BH72: n/a
A73: % of Variable Rate Mortgages | B73: 0.0151 | C73: 0.0145 | D73: 0.0088 | E73: 0.0089 | F73: 0.0086 | G73: 0.0074 | H73: 0.0062 | I73: 0.0058 | J73: 0.0051 | K73: 0.0048 | L73: 0.0049 | M73: 0.0049 | N73: 0.0049 | O73: 0.0066 | P73: 0.0065 | Q73: 0.0064 | R73: 0.0064 | S73: 0.0063 | T73: 0.006 | U73: 0.0059 | V73: 0.0056 | W73: 0.0055 | X73: 0.0053 | Y73: 0.0051 | Z73: 0.0048 | AA73: 0.0048 | AB73: 0.0046 | AC73: 0.0041 | AD73: 0.0041 | AE73: 0.0038 | AF73: 0.0037 | AG73: 0.0032 | AH73: 0.003 | AI73: 0.003 | AJ73: 0.002852133044 | AK73: 0.002792142658 | AL73: 0.002788306094 | AM73: 0.002781737348 | AN73: 0.00275101922 | AO73: 0.002721889165 | AP73: 0.002724050721 | AQ73: 0.002414161814 | AR73: 0.002414138941 | AS73: 0.002410007329 | AT73: 0.001996387455 | AU73: 0.001635694813 | AV73: 0.001517568759 | AW73: 0.001534051262 | AX73: 0.001537490938 | AY73: 0.001543022291 | AZ73: 0.00156522302 | BA73: 0.001557392118 | BB73: 0.00156010223 | BC73: 0.001082271668 | BD73: 0.001086475146 | BE73: 0.001095567481 | BF73: 0.001022994221 | BG73: 0.001020490084 | BH73: 0
A74: % of Fixed Rate Mortgages | B74: 0.5576 | C74: 0.5766 | D74: 0.6057 | E74: 0.622 | F74: 0.6391 | G74: 0.6242 | H74: 0.5345 | I74: 0.5176 | J74: 0.4815 | K74: 0.5093 | L74: 0.4084 | M74: 0.3125 | N74: 0.3012 | O74: 0.2613 | P74: 0.2323 | Q74: 0.2256 | R74: 0.2172 | S74: 0.1824 | T74: 0.1601 | U74: 0.0437 | V74: 0.036 | W74: 0.0327 | X74: 0.0219 | Y74: 0.0206 | Z74: 0.0207 | AA74: 0.0207 | AB74: 0.0208 | AC74: 0.0209 | AD74: 0.021 | AE74: 0.0036 | AF74: 0 | AG74: 0 | AH74: 0 | AI74: 0 | AJ74: 0 | AK74: 0 | AL74: 0 | AM74: 0 | AN74: 0 | AO74: 0 | AP74: 0 | AQ74: 0 | AR74: 0 | AS74: 0 | AT74: 0 | AU74: 0 | AV74: 0 | AW74: 0 | AX74: 0 | AY74: 0 | AZ74: 0.01376193965 | BA74: 0.01382267966 | BB74: 0.01398136071 | BC74: 0.01417649898 | BD74: 0.01440910884 | BE74: 0.01471650435 | BF74: 0.01485320413 | BG74: 0.01504322732 | BH74: 0
A75: % of Base Rate Mortgages | B75: 0 | C75: 0 | D75: 0.0012 | E75: 0.0074 | F75: 0.007 | G75: 0.0089 | H75: 0.0098 | I75: 0.0117 | J75: 0.0122 | K75: 0.0124 | L75: 0.013 | M75: 0.0136 | N75: 0.0139 | O75: 0.0136 | P75: 0.0137 | Q75: 0.0137 | R75: 0.0139 | S75: 0.014 | T75: 0.0141 | U75: 0.0142 | V75: 0.0143 | W75: 0.0143 | X75: 0.0144 | Y75: 0.0141 | Z75: 0.0142 | AA75: 0.0143 | AB75: 0.014 | AC75: 0.0137 | AD75: 0.0137 | AE75: 0.0133 | AF75: 0.013 | AG75: 0.013 | AH75: 0.0131 | AI75: 0.0132 | AJ75: 0.01205465691 | AK75: 0.01226060729 | AL75: 0.01235266853 | AM75: 0.01243617336 | AN75: 0.01259572557 | AO75: 0.01274333106 | AP75: 0.01287623727 | AQ75: 0.01317674237 | AR75: 0.0121867289 | AS75: 0.01206064391 | AT75: 0.01157605377 | AU75: 0.01178402509 | AV75: 0.01189022692 | AW75: 0.01191792481 | AX75: 0.01161526737 | AY75: 0.01169541599 | AZ75: 0.0116562877 | BA75: 0.01164080081 | BB75: 0.01145430763 | BC75: 0.01160682373 | BD75: 0.011134878 | BE75: 0.01136507264 | BF75: 0.01146318558 | BG75: 0.0116021509 | BH75: 0
A76: % of Libor Linked Mortgages | B76: 0.4274 | C76: 0.4089 | D76: 0.3843 | E76: 0.3617 | F76: 0.3453 | G76: 0.3595 | H76: 0.4496 | I76: 0.4649 | J76: 0.5012 | K76: 0.4735 | L76: 0.5736 | M76: 0.669 | N76: 0.68 | O76: 0.7185 | P76: 0.7475 | Q76: 0.7543 | R76: 0.7625 | S76: 0.7974 | T76: 0.8198 | U76: 0.9362 | V76: 0.9441 | W76: 0.9475 | X76: 0.9585 | Y76: 0.9602 | Z76: 0.9602 | AA76: 0.9602 | AB76: 0.9605 | AC76: 0.9613 | AD76: 0.9613 | AE76: 0.9792 | AF76: 0.9833 | AG76: 0.9838 | AH76: 0.9839 | AI76: 0.9838 | AJ76: 0.98509321 | AK76: 0.9849472501 | AL76: 0.9848590254 | AM76: 0.9847820893 | AN76: 0.9846532552 | AO76: 0.9845347798 | AP76: 0.984399712 | AQ76: 0.9844090958 | AR76: 0.9853991322 | AS76: 0.9855293488 | AT76: 0.9864275588 | AU76: 0.9865802801 | AV76: 0.9865922043 | AW76: 0.9865480239 | AX76: 0.9868472417 | AY76: 0.9867615617 | AZ76: 0.9730165496 | BA76: 0.9729791274 | BB76: 0.9730042294 | BC76: 0.9731344056 | BD76: 0.973369538 | BE76: 0.9728228555 | BF76: 0.9726606161 | BG76: 0.9723341317 | BH76: 0
A77: Weighted Average Loan Size | B77: 124706.78 | C77: 126143.77 | D77: 126999.73 | E77: 127874 | F77: 129794.19 | G77: 132172.45 | H77: 133723.46 | I77: 134402.16 | J77: 135104.97 | K77: 137144.29 | L77: 137205.23 | M77: 137582.23 | N77: 138190.73 | O77: 138244.12 | P77: 138207.09 | Q77: 138118.9 | R77: 137477.88 | S77: 137566.78 | T77: 137328.34 | U77: 137163.73 | V77: 137167.24 | W77: 137348.79 | X77: 137375.02 | Y77: 137011.5 | Z77: 137181.87 | AA77: 137205.78 | AB77: 137924.54 | AC77: 138060.25 | AD77: 138212.51 | AE77: 138508.7 | AF77: 138537.46 | AG77: 138420.21 | AH77: 138528.59 | AI77: 138504.36 | AJ77: 138951.1 | AK77: 139062.7797 | AL77: 138899.9359 | AM77: 138981.4807 | AN77: 139123.9078 | AO77: 138961.0148 | AP77: 138781.9918 | AQ77: 137777.181 | AR77: 138471.2814 | AS77: 138450.8532 | AT77: 138780.8686 | AU77: 138556.6141 | AV77: 138831.6344 | AW77: 137060.8031 | AX77: 136860.633 | AY77: 137003.7056 | AZ77: 136551.1337 | BA77: 136587.8701 | BB77: 136637.6425 | BC77: 137029.8442 | BD77: 137214.8641 | BE77: 136610.2278 | BF77: 136716.7088 | BG77: 136711.537 | BH77: 0
A78: Weighted Average Interest Rate | B78: 0.05605 | C78: 0.05575 | D78: 0.05592 | E78: 0.05692 | F78: 0.05762 | G78: 0.05889 | H78: 0.06274 | I78: 0.06466 | J78: 0.06376 | K78: 0.06358 | L78: 0.06537 | M78: 0.06979 | N78: 0.04607 | O78: 0.03803 | P78: 0.03363 | Q78: 0.0289 | R78: 0.02944 | S78: 0.02852 | T78: 0.02857 | U78: 0.02514 | V78: 0.02494 | W78: 0.0258 | X78: 0.02546 | Y78: 0.02638 | Z78: 0.02734 | AA78: 0.0273 | AB78: 0.02542 | AC78: 0.0225 | AD78: 0.02247 | AE78: 0.02192 | AF78: 0.02178 | AG78: 0.02176 | AH78: 0.02176 | AI78: 0.02176 | AJ78: 0.02176104984 | AK78: 0.02179188244 | AL78: 0.02178254435 | AM78: 0.02177737724 | AN78: 0.0218287889 | AO78: 0.02190635499 | AP78: 0.02217655794 | AQ78: 0.0222056071 | AR78: 0.02219966485 | AS78: 0.02030270395 | AT78: 0.02032257417 | AU78: 0.02035257055 | AV78: 0.02034085253 | AW78: 0.02039248233 | AX78: 0.02239484755 | AY78: 0.02432957757 | AZ78: 0.02331366785 | BA78: 0.02526005876 | BB78: 0.02624339774 | BC78: 0.02535196761 | BD78: 0.02437956131 | BE78: 0.02443562733 | BF78: 0.02439698137 | BG78: 0.02238063498 | BH78: 0
A79: Weighted Average Maturity Date (years) | B79: 21.09 | C79: 20.86 | D79: 20.67 | E79: 20.44 | F79: 20.25 | G79: 20.06 | H79: 19.81 | I79: 19.5 | J79: 19.32 | K79: 19.12 | L79: 18.84 | M79: 18.55 | N79: 18.34 | O79: 18.11 | P79: 17.88 | Q79: 17.65 | R79: 17.36 | S79: 17.13 | T79: 16.89 | U79: 16.64 | V79: 16.39 | W79: 16.15 | X79: 15.9 | Y79: 15.7 | Z79: 15.45 | AA79: 15.21 | AB79: 14.97 | AC79: 14.74 | AD79: 14.5 | AE79: 14.26 | AF79: 14.02 | AG79: 13.79 | AH79: 13.54 | AI79: 13.3 | AJ79: 13.08838403 | AK79: 12.86096208 | AL79: 12.63006291 | AM79: 12.41528625 | AN79: 12.25579546 | AO79: 12.04312379 | AP79: 11.85617111 | AQ79: 11.59787399 | AR79: 11.36982063 | AS79: 11.14936659 | AT79: 10.91842737 | AU79: 10.68267833 | AV79: 10.44035265 | AW79: 10.20189535 | AX79: 9.969254205 | AY79: 9.77269768 | AZ79: 9.765094964 | BA79: 9.523720915 | BB79: 9.29570104 | BC79: 9.103758944 | BD79: 8.901075006 | BE79: 8.680570354 | BF79: 8.456373576 | BG79: 8.270993082 | BH79: 0
A80: Weighted Average Seasoning (months) | B80: 14.95 | C80: 17.71 | D80: 19.61 | E80: 23.56 | F80: 26.29 | G80: 29.1 | H80: 31.93 | I80: 35.06 | J80: 37.96 | K80: 40.86 | L80: 42.89 | M80: 47.1 | N80: 50.17 | O80: 53.22 | P80: 56.23 | Q80: 59.22 | R80: 62.27 | S80: 65.26 | T80: 68.27 | U80: 71.23 | V80: 74.1 | W80: 77.05 | X80: 80.06 | Y80: 83.04 | Z80: 86 | AA80: 88.99 | AB80: 91.96 | AC80: 94.92 | AD80: 97.85 | AE80: 100.78 | AF80: 103.75 | AG80: 106.68 | AH80: 109.59 | AI80: 112.63 | AJ80: 115.5224674 | AK80: 118.4417527 | AL80: 121.4006349 | AM80: 124.3892491 | AN80: 127.248129 | AO80: 130.2987754 | AP80: 133.2850851 | AQ80: 136.2426754 | AR80: 139.0503536 | AS80: 141.9432422 | AT80: 144.9128396 | AU80: 147.8868717 | AV80: 150.9399815 | AW80: 153.8546476 | AX80: 156.8175339 | AY80: 159.7123799 | AZ80: 162.8164316 | BA80: 165.8054992 | BB80: 168.6985627 | BC80: 171.5491883 | BD80: 174.543439 | BE80: 177.5932896 | BF80: 180.6063071 | BG80: 183.6904655 | BH80: 0
A81: % of Interest Only Mortgages | B81: 0.9169 | C81: 0.9172 | D81: 0.917 | E81: 0.918 | F81: 0.9213 | G81: 0.9229 | H81: 0.9222 | I81: 0.9222 | J81: 0.9241 | K81: 0.9266 | L81: 0.9305 | M81: 0.9388 | N81: 0.9409 | O81: 0.9446 | P81: 0.9457 | Q81: 0.9464 | R81: 0.9477 | S81: 0.9478 | T81: 0.9495 | U81: 0.9499 | V81: 0.9501 | W81: 0.9501 | X81: 0.9507 | Y81: 0.9518 | Z81: 0.9528 | AA81: 0.9535 | AB81: 0.9555 | AC81: 0.9577 | AD81: 0.96 | AE81: 0.9608 | AF81: 0.962 | AG81: 0.9627 | AH81: 0.964 | AI81: 0.9644 | AJ81: 0.9653171269 | AK81: 0.965369867 | AL81: 0.9658585974 | AM81: 0.9667212939 | AN81: 0.9670101247 | AO81: 0.9669261541 | AP81: 0.9674537051 | AQ81: 0.9695214096 | AR81: 0.9689941327 | AS81: 0.969419158 | AT81: 0.9701251617 | AU81: 0.9704573263 | AV81: 0.9711995159 | AW81: 0.9717399854 | AX81: 0.9736041525 | AY81: 0.9747882441 | AZ81: 0.9753717108 | BA81: 0.9753522872 | BB81: 0.9757850994 | BC81: 0.9773230704 | BD81: 0.9779286889 | BE81: 0.9787020368 | BF81: 0.9797881565 | BG81: 0.9803658884 | BH81: 0
A82: % of Repayment Mortgages | B82: 0.0831 | C82: 0.0828 | D82: 0.083 | E82: 0.082 | F82: 0.0787 | G82: 0.0771 | H82: 0.0778 | I82: 0.0778 | J82: 0.0759 | K82: 0.0734 | L82: 0.0695 | M82: 0.0612 | N82: 0.0591 | O82: 0.0554 | P82: 0.0543 | Q82: 0.0536 | R82: 0.0523 | S82: 0.0522 | T82: 0.0505 | U82: 0.0501 | V82: 0.0499 | W82: 0.0499 | X82: 0.0493 | Y82: 0.0482 | Z82: 0.0472 | AA82: 0.0465 | AB82: 0.0445 | AC82: 0.0423 | AD82: 0.04 | AE82: 0.0392 | AF82: 0.038 | AG82: 0.0373 | AH82: 0.036 | AI82: 0.0356 | AJ82: 0.03468287309 | AK82: 0.03463013299 | AL82: 0.03414140261 | AM82: 0.0332787061 | AN82: 0.03298987529 | AO82: 0.03307384593 | AP82: 0.03254629488 | AQ82: 0.03047859039 | AR82: 0.03100586726 | AS82: 0.03058084202 | AT82: 0.02987483829 | AU82: 0.02954267374 | AV82: 0.02880048405 | AW82: 0.02826001459 | AX82: 0.02639584751 | AY82: 0.02521175593 | AZ82: 0.02462828919 | BA82: 0.02464771276 | BB82: 0.02421490064 | BC82: 0.02267692958 | BD82: 0.02207131111 | BE82: 0.02129796317 | BF82: 0.02021184352 | BG82: 0.01963411158 | BH82: 0
A83: % of Mortgages in London | B83: 0.1541 | C83: 0.1544 | D83: 0.1524 | E83: 0.15 | F83: 0.1521 | G83: 0.1479 | H83: 0.1468 | I83: 0.1377 | J83: 0.1357 | K83: 0.1364 | L83: 0.1313 | M83: 0.1282 | N83: 0.1246 | O83: 0.1234 | P83: 0.1226 | Q83: 0.1223 | R83: 0.1206 | S83: 0.1212 | T83: 0.1218 | U83: 0.1171 | V83: 0.116 | W83: 0.1157 | X83: 0.1145 | Y83: 0.1113 | Z83: 0.1119 | AA83: 0.1121 | AB83: 0.1118 | AC83: 0.1114 | AD83: 0.1117 | AE83: 0.1119 | AF83: 0.1114 | AG83: 0.1097 | AH83: 0.1084 | AI83: 0.1068 | AJ83: 0.1072127281 | AK83: 0.1078000665 | AL83: 0.1072938751 | AM83: 0.1073997363 | AN83: 0.107534793 | AO83: 0.1058141746 | AP83: 0.1031224704 | AQ83: 0.09775571457 | AR83: 0.09500873109 | AS83: 0.09313456218 | AT83: 0.09124017692 | AU83: 0.09157872683 | AV83: 0.09097348648 | AW83: 0.0892369689 | AX83: 0.08811305532 | AY83: 0.08849186474 | AZ83: 0.08666010149 | BA83: 0.0868465801 | BB83: 0.08654138338 | BC83: 0.08743759803 | BD83: 0.08771653729 | BE83: 0.08944681532 | BF83: 0.08990013339 | BG83: 0.08646439223 | BH83: 0
A84: % of Mortgages in the South East | B84: 0.2114 | C84: 0.209 | D84: 0.2064 | E84: 0.2061 | F84: 0.206 | G84: 0.2057 | H84: 0.2007 | I84: 0.1987 | J84: 0.1984 | K84: 0.1984 | L84: 0.1985 | M84: 0.1946 | N84: 0.1959 | O84: 0.1962 | P84: 0.1956 | Q84: 0.1954 | R84: 0.1973 | S84: 0.1972 | T84: 0.1966 | U84: 0.1981 | V84: 0.198 | W84: 0.1974 | X84: 0.1975 | Y84: 0.1971 | Z84: 0.1969 | AA84: 0.1965 | AB84: 0.1966 | AC84: 0.1974 | AD84: 0.1973 | AE84: 0.1959 | AF84: 0.1963 | AG84: 0.1971 | AH84: 0.1972 | AI84: 0.1954 | AJ84: 0.1926836181 | AK84: 0.1925593703 | AL84: 0.191158667 | AM84: 0.1904044801 | AN84: 0.1906536785 | AO84: 0.1895119631 | AP84: 0.1890200436 | AQ84: 0.1885589119 | AR84: 0.189051102 | AS84: 0.1897207538 | AT84: 0.1874962824 | AU84: 0.1877478178 | AV84: 0.1868642449 | AW84: 0.1897488919 | AX84: 0.1874515254 | AY84: 0.1829447516 | AZ84: 0.1836400973 | BA84: 0.1832764822 | BB84: 0.1828286954 | BC84: 0.1811175155 | BD84: 0.179993892 | BE84: 0.1790747435 | BF84: 0.175256195 | BG84: 0.173227377 | BH84: 0
A85: % of Owner Occupied Mortgages | B85: 0 | C85: 0 | D85: 0 | E85: 0 | F85: 0 | G85: 0 | H85: 0 | I85: 0 | J85: 0 | K85: 0 | L85: 0 | M85: 0 | N85: 0 | O85: 0 | P85: 0 | Q85: 0 | R85: 0 | S85: 0 | T85: 0 | U85: 0 | V85: 0 | W85: 0 | X85: 0 | Y85: 0 | Z85: 0 | AA85: 0 | AB85: 0 | AC85: 0 | AD85: 0 | AE85: 0 | AF85: 0 | AG85: 0 | AH85: 0 | AI85: 0 | AJ85: 0 | AK85: 0 | AL85: 0 | AM85: 0 | AN85: 0 | AO85: 0 | AP85: 0 | AQ85: 0 | AR85: 0 | AS85: 0 | AT85: 0 | AU85: 0 | AV85: 0 | AW85: 0 | AX85: 0 | AY85: 0 | AZ85: 0 | BA85: 0 | BB85: 0 | BC85: 0 | BD85: 0 | BE85: 0 | BF85: 0 | BG85: 0 | BH85: 0
A86: % of Investment Home Loans - Professional Landlords | B86: 0.8842 | C86: 0.8841 | D86: 0.8865 | E86: 0.8879 | F86: 0.8883 | G86: 0.8899 | H86: 0.9066 | I86: 0.9149 | J86: 0.9194 | K86: 0.9201 | L86: 0.9243 | M86: 0.9303 | N86: 0.9298 | O86: 0.9303 | P86: 0.9316 | Q86: 0.9317 | R86: 0.932 | S86: 0.9319 | T86: 0.9317 | U86: 0.9317 | V86: 0.9324 | W86: 0.9328 | X86: 0.9327 | Y86: 0.9325 | Z86: 0.9341 | AA86: 0.934 | AB86: 0.9345 | AC86: 0.9342 | AD86: 0.935 | AE86: 0.935 | AF86: 0.9349 | AG86: 0.9358 | AH86: 0.9358 | AI86: 0.9361 | AJ86: 0.937472572 | AK86: 0.9384395757 | AL86: 0.9409562832 | AM86: 0.9420433402 | AN86: 0.9424601275 | AO86: 0.9431427657 | AP86: 0.9430449815 | AQ86: 0.9429032582 | AR86: 0.9434105489 | AS86: 0.9438766057 | AT86: 0.944287271 | AU86: 0.9435485546 | AV86: 0.9437769259 | AW86: 0.9470239415 | AX86: 0.9473810153 | AY86: 0.9486122412 | AZ86: 0.9486611019 | BA86: 0.9487750397 | BB86: 0.9490823203 | BC86: 0.9492221851 | BD86: 0.9495205807 | BE86: 0.9501891826 | BF86: 0.9508284806 | BG86: 0.9520589661 | BH86: 0
A87: % of Investment Home Loans - Emerging Professional Landlords | B87: 0.1158 | C87: 0.1159 | D87: 0.1135 | E87: 0.1121 | F87: 0.1117 | G87: 0.1101 | H87: 0.0934 | I87: 0.0851 | J87: 0.0806 | K87: 0.0799 | L87: 0.0757 | M87: 0.0697 | N87: 0.0702 | O87: 0.0697 | P87: 0.0684 | Q87: 0.0683 | R87: 0.068 | S87: 0.0681 | T87: 0.0683 | U87: 0.0683 | V87: 0.0676 | W87: 0.0672 | X87: 0.0673 | Y87: 0.0675 | Z87: 0.0659 | AA87: 0.066 | AB87: 0.0655 | AC87: 0.0658 | AD87: 0.065 | AE87: 0.065 | AF87: 0.0651 | AG87: 0.0642 | AH87: 0.0642 | AI87: 0.0639 | AJ87: 0.06252742796 | AK87: 0.06156042428 | AL87: 0.05904371683 | AM87: 0.05795665979 | AN87: 0.05753987253 | AO87: 0.05685723427 | AP87: 0.05695501852 | AQ87: 0.05709674178 | AR87: 0.05658945109 | AS87: 0.05612339428 | AT87: 0.05571272904 | AU87: 0.05645144542 | AV87: 0.05622307411 | AW87: 0.05297605848 | AX87: 0.05261898473 | AY87: 0.05138775884 | AZ87: 0.05133889814 | BA87: 0.05122496031 | BB87: 0.05091767971 | BC87: 0.05077781488 | BD87: 0.05047941933 | BE87: 0.0498108174 | BF87: 0.04917151935 | BG87: 0.04794103393 | BH87: 0
A88: Weighted Average Interest Coverage Ratio (calculated at the origination date) | B88: 1.84 | C88: 1.83 | D88: 1.83 | E88: 1.84 | F88: 1.82 | G88: 1.82 | H88: 1.81 | I88: 1.81 | J88: 1.82 | K88: 1.81 | L88: 1.81 | M88: 1.82 | N88: 1.82 | O88: 1.81 | P88: 1.81 | Q88: 1.81 | R88: 1.81 | S88: 1.81 | T88: 1.8 | U88: 1.8 | V88: 1.8 | W88: 1.8 | X88: 1.8 | Y88: 1.8 | Z88: 1.8 | AA88: 1.79 | AB88: 1.79 | AC88: 1.78 | AD88: 1.78 | AE88: 1.77 | AF88: 1.77 | AG88: 1.77 | AH88: 1.77 | AI88: 1.77 | AJ88: 1.773487079 | AK88: 1.772280213 | AL88: 1.772386575 | AM88: 1.771304402 | AN88: 1.770535367 | AO88: 1.772541596 | AP88: 1.766501786 | AQ88: 1.756979983 | AR88: 1.759238035 | AS88: 1.761206318 | AT88: 1.763577601 | AU88: 1.761610788 | AV88: 1.759892681 | AW88: 1.763031329 | AX88: 1.757391934 | AY88: 1.754437706 | AZ88: 1.757084794 | BA88: 1.75709171 | BB88: 1.754003937 | BC88: 1.755500237 | BD88: 1.75621486 | BE88: 1.75457427 | BF88: 1.75490956 | BG88: 1.752186647 | BH88: 0
A89: PML Lifetime Redemption Rate | B89: 0.0731 | C89: 0.0876 | D89: 0.094 | E89: 0.1004 | F89: 0.0996 | G89: 0.0994 | H89: 0.1111 | I89: 0.1226 | J89: 0.127 | K89: 0.1229 | L89: 0.1298 | M89: 0.1376 | N89: 0.1349 | O89: 0.1286 | P89: 0.122 | Q89: 0.116 | R89: 0.112 | S89: 0.1072 | T89: 0.1034 | U89: 0.0999 | V89: 0.0966 | W89: 0.093 | X89: 0.09 | Y89: 0.0878 | Z89: 0.0854 | AA89: 0.0828 | AB89: 0.0805 | AC89: 0.0785 | AD89: 0.0765 | AE89: 0.0745 | AF89: 0.0727 | AG89: 0.0713 | AH89: 0.0697 | AI89: 0.0687 | AJ89: 0.0677 | AK89: 0.0665 | AL89: 0.0656 | AM89: 0.0646 | AN89: 0.0644 | AO89: 0.064 | AP89: 0.0636 | AQ89: 0.0642 | AR89: 0.0639 | AS89: 0.0634 | AT89: 0.0633 | AU89: 0.0635 | AV89: 0.0629 | AW89: 0.0639 | AX89: 0.0634 | AY89: 0.0633 | AZ89: 0.0638 | BA89: 0.063 | BB89: 0.0626 | BC89: 0.0625 | BD89: 0.0625 | BE89: 0.0628 | BF89: 0.0624 | BG89: 0.0621 | BH89: 1
A90: Number of Properties in Possession | B90: 0 | C90: 0 | D90: 0 | E90: 0 | F90: 0 | G90: 0 | H90: 0 | I90: 0 | J90: 0 | K90: 0 | L90: 0 | M90: 0 | N90: 0 | O90: 0 | P90: 0 | Q90: 0 | R90: 0 | S90: 0 | T90: 0 | U90: 0 | V90: 0 | W90: 0 | X90: 0 | Y90: 0 | Z90: 0 | AA90: 0 | AB90: 0 | AC90: 0 | AD90: 0 | AE90: 0 | AF90: 0 | AG90: 0 | AH90: 0 | AI90: 0 | AJ90: 0 | AK90: 0 | AL90: 0 | AM90: 0 | AN90: 0 | AO90: 0 | AP90: 0 | AQ90: 0 | AR90: 0 | AS90: 0 | AT90: 0 | AU90: 0 | AV90: 0 | AW90: 0 | AX90: 0 | AY90: 0 | AZ90: 0 | BA90: 0 | BB90: 0 | BC90: 0 | BD90: 0 | BE90: 0 | BF90: 0 | BG90: 0 | BH90: 0
A91: Appointment of a Receiver of Rent | B91: 0 | C91: 1 | D91: 2 | E91: 3 | F91: 6 | G91: 8 | H91: 9 | I91: 15 | J91: 16 | K91: 9 | L91: 59 | M91: 94 | N91: 118 | O91: 112 | P91: 109 | Q91: 110 | R91: 66 | S91: 63 | T91: 56 | U91: 56 | V91: 69 | W91: 65 | X91: 67 | Y91: 78 | Z91: 71 | AA91: 75 | AB91: 73 | AC91: 70 | AD91: 67 | AE91: 66 | AF91: 66 | AG91: 62 | AH91: 61 | AI91: 62 | AJ91: 59 | AK91: 56 | AL91: 69 | AM91: 67 | AN91: 65 | AO91: 62 | AP91: 59 | AQ91: 54 | AR91: 54 | AS91: 53 | AT91: 51 | AU91: 44 | AV91: 41 | AW91: 41 | AX91: 39 | AY91: 40 | AZ91: 45 | BA91: 45 | BB91: 46 | BC91: 45 | BD91: 42 | BE91: 39 | BF91: 39 | BG91: 37 | BH91: 0
A92: PML Quarterly Losses | B92: 0 | C92: 0 | D92: 0 | E92: 0 | F92: 1 | G92: 15 | H92: 0 | I92: 0 | J92: 46 | K92: 0 | L92: 22 | M92: 2 | N92: 125 | O92: 223 | P92: 0 | Q92: 191 | R92: 892 | S92: 403 | T92: 428 | U92: 32 | V92: 185 | W92: 116 | X92: 42 | Y92: -108 | Z92: 251 | AA92: 41 | AB92: 53 | AC92: 188 | AD92: -114 | AE92: 3 | AF92: 0 | AG92: 97 | AH92: 17 | AI92: 157 | AJ92: 62 | AK92: -14 | AL92: 140 | AM92: -6 | AN92: 49 | AO92: 151 | AP92: 358 | AQ92: 191 | AR92: 5 | AS92: 80 | AT92: 342 | AU92: 64 | AV92: 33 | AW92: -7 | AX92: 91 | AY92: -17 | AZ92: -18 | BA92: -47 | BB92: 28 | BC92: 48 | BD92: 312 | BE92: 221 | BF92: -46 | BG92: 191 | BH92: 0
A93: Arrears excluding Receiver of Rent and Possession Cases
A94: Performing Loans | B94: 0.9911 | C94: 0.9913 | D94: 0.9944 | E94: 0.9956 | F94: 0.9946 | G94: 0.9933 | H94: 0.9867 | I94: 0.9847 | J94: 0.9858 | K94: 0.9791 | L94: 0.9792 | M94: 0.9676 | N94: 0.9706 | O94: 0.9736 | P94: 0.9691 | Q94: 0.9748 | R94: 0.9748 | S94: 0.9895 | T94: 0.9838 | U94: 0.975 | V94: 0.982 | W94: 0.9815 | X94: 0.9862 | Y94: 0.9903 | Z94: 0.9925 | AA94: 0.9853 | AB94: 0.9852 | AC94: 0.9855 | AD94: 0.9849 | AE94: 0.9953 | AF94: 0.9998 | AG94: 0.9991 | AH94: 0.999 | AI94: 0.9992 | AJ94: 0.999539385 | AK94: 0.9996637568 | AL94: 0.9993460341 | AM94: 0.9991285321 | AN94: 0.9972358233 | AO94: 0.9992806488 | AP94: 0.9977111166 | AQ94: 0.9990398261 | AR94: 0.9990946592 | AS94: 0.9971612596 | AT94: 0.9994907779 | AU94: 1 | AV94: 0.9996271197 | AW94: 0.9984484794 | AX94: 0.996925618 | AY94: 0.9931295732 | AZ94: 0.9969733741 | BA94: 0.9966274675 | BB94: 0.9995378079 | BC94: 0.9892337771 | BD94: 0.9952910735 | BE94: 0.9970832942 | BF94: 0.9750686541 | BG94: 0.9803592141 | BH94: 0
A95: >1 to 2 months arrears | B95: 0.0041 | C95: 0.0035 | D95: 0.0047 | E95: 0.0028 | F95: 0.0054 | G95: 0.0027 | H95: 0.0129 | I95: 0.0119 | J95: 0.0061 | K95: 0.0117 | L95: 0.0176 | M95: 0.0261 | N95: 0.0189 | O95: 0.0173 | P95: 0.0187 | Q95: 0.0191 | R95: 0.0206 | S95: 0.0073 | T95: 0.0145 | U95: 0.0203 | V95: 0.0168 | W95: 0.0169 | X95: 0.0122 | Y95: 0.0097 | Z95: 0.007 | AA95: 0.0147 | AB95: 0.0144 | AC95: 0.0145 | AD95: 0.0151 | AE95: 0.004 | AF95: 0 | AG95: 0.0007 | AH95: 0.0008 | AI95: 0.0006 | AJ95: 0 | AK95: 0.0003362431963 | AL95: 0.0006539659239 | AM95: 0.0003585653887 | AN95: 0.002764176724 | AO95: 0.0007193511622 | AP95: 0.0009634919892 | AQ95: 0.000960173898 | AR95: 0.0005502274538 | AS95: 0.002233660781 | AT95: 0 | AU95: 0 | AV95: 0.0003728803422 | AW95: 0.00155152058 | AX95: 0.003074381984 | AY95: 0.006870426812 | AZ95: 0.002593414447 | BA95: 0.003372532508 | BB95: 0.0004621920843 | BC95: 0.01076622288 | BD95: 0.00057267298 | BE95: 0 | BF95: 0.02493134594 | BG95: 0.01771827058 | BH95: 0
A96: >2 to 3 months arrears | B96: 0.0048 | C96: 0.0042 | D96: 0.0006 | E96: 0.0015 | F96: 0 | G96: 0.0002 | H96: 0.0004 | I96: 0.0034 | J96: 0.0081 | K96: 0.0092 | L96: 0.0029 | M96: 0.0048 | N96: 0.0085 | O96: 0.0037 | P96: 0.0083 | Q96: 0.0038 | R96: 0.0037 | S96: 0.0022 | T96: 0.0013 | U96: 0.004 | V96: 0.0012 | W96: 0.0016 | X96: 0.0016 | Y96: 0 | Z96: 0.0005 | AA96: 0 | AB96: 0.0004 | AC96: 0 | AD96: 0 | AE96: 0.0005 | AF96: 0 | AG96: 0 | AH96: 0 | AI96: 0 | AJ96: 0 | AK96: 0 | AL96: 0 | AM96: 0.0005129025484 | AN96: 0 | AO96: 0 | AP96: 0.0013253914 | AQ96: 0 | AR96: 0.0003551133079 | AS96: 0.0006050795854 | AT96: 0.0005092221252 | AU96: 0 | AV96: 0 | AW96: 0 | AX96: 0 | AY96: 0 | AZ96: 0.0004332114373 | BA96: 0 | BB96: 0 | BC96: 0 | BD96: 0.004136253485 | BE96: 0.002617598599 | BF96: 0 | BG96: 0 | BH96: 0
A97: >3 months arrears | B97: 0 | C97: 0.001 | D97: 0.0003 | E97: 0.0001 | F97: 0 | G97: 0.0038 | H97: 0 | I97: 0 | J97: 0 | K97: 0 | L97: 0.0003 | M97: 0.0015 | N97: 0.002 | O97: 0.0054 | P97: 0.0039 | Q97: 0.0023 | R97: 0.0009 | S97: 0.001 | T97: 0.0004 | U97: 0.0007 | V97: 0 | W97: 0 | X97: 0 | Y97: 0 | Z97: 0 | AA97: 0 | AB97: 0 | AC97: 0 | AD97: 0 | AE97: 0.0002 | AF97: 0.0002 | AG97: 0.0002 | AH97: 0.0002 | AI97: 0.0002 | AJ97: 0.000460615037 | AK97: 0 | AL97: 0 | AM97: 0 | AN97: 0 | AO97: 0 | AP97: 0 | AQ97: 0 | AR97: 0 | AS97: 0 | AT97: 0 | AU97: 0 | AV97: 0 | AW97: 0 | AX97: 0 | AY97: 0 | AZ97: 0 | BA97: 0 | BB97: 0 | BC97: 0 | BD97: 0 | BE97: 0.0002991071787 | BF97: 0 | BG97: 0.001922515342 | BH97: 0
A98: Total | B98: =SUM(B94:B97) -> 1 | C98: 1 | D98: 1 | E98: 1 | F98: 1 | G98: 1 | H98: 1 | I98: 1 | J98: 1 | K98: 1 | L98: 1 | M98: 1 | N98: 1 | O98: 1 | P98: 1 | Q98: 1 | R98: 1 | S98: 1 | T98: 1 | U98: 1 | V98: 1 | W98: 1 | X98: 1 | Y98: 1 | Z98: =SUM(Z94:Z97) -> 1 | AA98: 1 | AB98: 1 | AC98: 1 | AD98: 1 | AE98: 1 | AF98: =SUM(AF94:AF97) -> 1 | AG98: =SUM(AG94:AG97) -> 1 | AH98: =SUM(AH94:AH97) -> 1 | AI98: =SUM(AI94:AI97) -> 1 | AJ98: =SUM(AJ94:AJ97) -> 1 | AK98: 1 | AL98: 1 | AM98: 1 | AN98: 1 | AO98: 1 | AP98: 1 | AQ98: 1 | AR98: 1 | AS98: 1 | AT98: 1 | AU98: 1 | AV98: 1 | AW98: 1 | AX98: 1 | AY98: 1 | AZ98: 1 | BA98: 1 | BB98: 1 | BC98: 1 | BD98: 1 | BE98: 1 | BF98: 1 | BG98: 1 | BH98: =SUM(BH94:BH97) -> 0
A100: Underlying Assets - Mortgage Trust Originated Assets | B100: 2006-02-28 | C100: 2006-05-31 | D100: 2006-08-31 | E100: 2006-11-30 | F100: 2007-02-28 | G100: 2007-05-31 | H100: 2007-08-31 | I100: 2007-11-30 | J100: 2008-02-29 | K100: 2008-05-30 | L100: 2008-08-31 | M100: 2008-11-28 | N100: 2009-02-27 | O100: 2009-05-29 | P100: 2009-08-28 | Q100: 2009-11-30 | R100: 2010-02-26 | S100: 2010-05-28 | T100: 2010-08-31 | U100: 2010-11-30 | V100: 2011-02-28 | W100: 2011-05-31 | X100: 2011-08-31 | Y100: 2011-11-30 | Z100: 2012-02-29 | AA100: 2012-05-31 | AB100: 2012-08-31 | AC100: 2012-11-30 | AD100: 2013-02-28 | AE100: 2013-05-31 | AF100: 2013-08-30 | AG100: 2013-11-29 | AH100: 2014-02-28 | AI100: 2014-05-30 | AJ100: 2014-08-29 | AK100: 2014-11-28 | AL100: 2015-02-27 | AM100: =+AM69 -> 2015-05-29 | AN100: 2015-08-28 | AO100: 2015-11-30 | AP100: 2016-02-29 | AQ100: 2016-05-31 | AR100: 2016-08-31 | AS100: =+AS69 -> 2016-11-30 | AT100: 2017-02-28 | AU100: =+AU69 -> 2017-05-31 | AV100: 2017-08-31 | AW100: =+AW69 -> 2017-11-30 | AX100: 2018-02-28 | AY100: =+AY69 -> 2018-05-31 | AZ100: 2018-08-31 | BA100: =+BA69 -> 2018-11-30 | BB100: 2019-02-28 | BC100: =+BC69 -> 2019-05-31 | BD100: 2019-08-30 | BE100: =+BE69 -> 2019-11-29 | BF100: 2020-02-28 | BG100: =+BG69 -> 2020-05-29 | BH100: 2020-08-28
A101: Weighted Average LTV | B101: 0.7882 | C101: 0.788 | D101: 0.7884 | E101: 0.7888 | F101: 0.7891 | G101: 0.7882 | H101: 0.788 | I101: 0.7863 | J101: 0.7873 | K101: 0.7876 | L101: 0.7903 | M101: 0.7912 | N101: 0.7906 | O101: 0.7895 | P101: 0.7886 | Q101: 0.7881 | R101: 0.7871 | S101: 0.7865 | T101: 0.7868 | U101: 0.7873 | V101: 0.7876 | W101: 0.7867 | X101: 0.7862 | Y101: 0.7856 | Z101: 0.7851 | AA101: 0.7852 | AB101: 0.785 | AC101: 0.7846 | AD101: 0.7836 | AE101: 0.7833 | AF101: 0.783 | AG101: 0.7834 | AH101: 0.7827 | AI101: 0.7817 | AJ101: 0.77968052 | AK101: 0.7788626118 | AL101: 0.7780667494 | AM101: 0.7786829818 | AN101: 0.7782852462 | AO101: 0.7774974412 | AP101: 0.7774269085 | AQ101: 0.7768897148 | AR101: 0.77672453 | AS101: 0.7767843529 | AT101: 0.7755622993 | AU101: 0.7740618524 | AV101: 0.7736917937 | AW101: 0.7725245249 | AX101: 0.7732566283 | AY101: 0.7728487169 | AZ101: 0.7730050111 | BA101: 0.7728587697 | BB101: 0.7715339326 | BC101: 0.7706442372 | BD101: 0.7699265317 | BE101: 0.7686242059 | BF101: 0.7683324951 | BG101: 0.7680089298 | BH101: 0
A102: Weighted Average Nationwide Indexed LTV | B102: 0.7885 | C102: 0.7741 | D102: 0.7558 | E102: 0.7436 | F102: 0.7269 | G102: 0.7106 | H102: 0.6888 | I102: 0.6805 | J102: 0.684 | K102: 0.6996 | L102: 0.7293 | M102: 0.7936 | N102: 0.8151 | O102: 0.8571 | P102: 0.8273 | Q102: 0.7953 | R102: 0.7822 | S102: 0.7756 | T102: 0.7589 | U102: 0.7534 | V102: 0.7756 | W102: 0.7737 | X102: 0.754 | Y102: 0.7565 | Z102: 0.7609 | AA102: 0.772 | AB102: 0.7604 | AC102: 0.7595 | AD102: 0.7674 | AE102: 0.7661 | AF102: 0.7476 | AG102: 0.7276 | AH102: 0.7121 | AI102: 0.6993 | AJ102: 0.664544739 | AK102: 0.6563840993 | AL102: 0.6575367006 | AM102: 0.6602011874 | AN102: 0.6397240141 | AO102: 0.6341295474 | AP102: 0.6311946837 | AQ102: 0.626060908 | AR102: 0.6063109635 | AS102: 0.6022248823 | AT102: 0.6006987009 | AU102: 0.5992862485 | AV102: 0.5886657126 | AW102: 0.5879500653 | AX102: 0.5888366456 | AY102: 0.5858542931 | AZ102: 0.5806947186 | BA102: 0.5771703522 | BB102: 0.5812160383 | BC102: 0.5866946433 | BD102: 0.5763489744 | BE102: 0.5731630291 | BF102: 0.5778905412 | BG102: 0.5746724723 | BH102: 0
A103: Weighted Average Halifax Indexed LTV | B103: 0.7712 | C103: 0.7544 | D103: 0.7365 | E103: 0.7281 | F103: 0.699 | G103: 0.6789 | H103: 0.6603 | I103: 0.6536 | J103: 0.6728 | K103: 0.6893 | L103: 0.714 | M103: 0.7701 | N103: 0.8232 | O103: 0.8572 | P103: 0.8519 | Q103: 0.8251 | R103: 0.8037 | S103: 0.797 | T103: 0.7849 | U103: 0.8011 | V103: 0.8092 | W103: 0.8172 | X103: 0.8099 | Y103: 0.8031 | Z103: 0.8019 | AA103: 0.807 | AB103: 0.8056 | AC103: 0.8042 | AD103: 0.8086 | AE103: 0.7926 | AF103: 0.7706 | AG103: 0.7548 | AH103: 0.748 | AI103: 0.7313 | AJ103: 0.7034055765 | AK103: 0.6762201379 | AL103: 0.6832879243 | AM103: 0.6703905337 | AN103: 0.6382902243 | AO103: 0.6283653369 | AP103: 0.6297935584 | AQ103: 0.6023259009 | AR103: 0.5862715039 | AS103: n/a | AT103: n/a | AU103: n/a | AV103: n/a | AW103: n/a | AX103: n/a | AY103: n/a | AZ103: n/a | BA103: n/a | BB103: n/a | BC103: n/a | BD103: n/a | BE103: n/a | BF103: n/a | BG103: n/a | BH103: n/a
A104: % of Variable Rate Mortgages | B104: 0 | C104: 0 | D104: 0 | E104: 0 | F104: 0 | G104: 0 | H104: 0 | I104: 0 | J104: 0 | K104: 0 | L104: 0 | M104: 0 | N104: 0 | O104: 0 | P104: 0 | Q104: 0 | R104: 0 | S104: 0 | T104: 0 | U104: 0 | V104: 0 | W104: 0 | X104: 0 | Y104: 0 | Z104: 0 | AA104: 0 | AB104: 0 | AC104: 0 | AD104: 0 | AE104: 0 | AF104: 0 | AG104: 0 | AH104: 0 | AI104: 0 | AJ104: 0 | AK104: 0 | AL104: 0 | AM104: 0 | AN104: 0 | AO104: 0 | AP104: 0 | AQ104: 0 | AR104: 0 | AS104: 0 | AT104: 0 | AU104: 0 | AV104: 0 | AW104: 0 | AX104: 0 | AY104: 0 | AZ104: 0 | BA104: 0 | BB104: 0 | BC104: 0 | BD104: 0 | BE104: 0 | BF104: 0 | BG104: 0 | BH104: 0
A105: % of Fixed Rate Mortgages | B105: 0.9235 | C105: 0.9085 | D105: 0.8898 | E105: 0.8675 | F105: 0.8669 | G105: 0.6458 | H105: 0.7211 | I105: 0.4213 | J105: 0.4677 | K105: 0.5505 | L105: 0.5116 | M105: 0.3003 | N105: 0.2579 | O105: 0.2717 | P105: 0.2756 | Q105: 0.2695 | R105: 0.1577 | S105: 0.087 | T105: 0.0626 | U105: 0.0529 | V105: 0.0356 | W105: 0.0221 | X105: 0.0077 | Y105: 0.0078 | Z105: 0.0039 | AA105: 0.0024 | AB105: 0.0025 | AC105: 0.0025 | AD105: 0.0025 | AE105: 0.0007 | AF105: 0 | AG105: 0 | AH105: 0 | AI105: 0 | AJ105: 0 | AK105: 0 | AL105: 0 | AM105: 0 | AN105: 0 | AO105: 0 | AP105: 0 | AQ105: 0 | AR105: 0 | AS105: 0 | AT105: 0 | AU105: 0 | AV105: 0 | AW105: 0 | AX105: 0 | AY105: 0 | AZ105: 0 | BA105: 0 | BB105: 0 | BC105: 0 | BD105: 0 | BE105: 0 | BF105: 0 | BG105: 0 | BH105: 0
A106: % of Base Rate Mortgages | B106: 0 | C106: 0 | D106: 0 | E106: 0.0031 | F106: 0.0041 | G106: 0.0078 | H106: 0.0107 | I106: 0.0189 | J106: 0.0224 | K106: 0.0225 | L106: 0.0256 | M106: 0.025 | N106: 0.0283 | O106: 0.0285 | P106: 0.0281 | Q106: 0.0283 | R106: 0.0287 | S106: 0.0291 | T106: 0.0296 | U106: 0.0299 | V106: 0.0301 | W106: 0.0292 | X106: 0.0293 | Y106: 0.0296 | Z106: 0.0298 | AA106: 0.0299 | AB106: 0.0302 | AC106: 0.0304 | AD106: 0.0306 | AE106: 0.0308 | AF106: 0.031 | AG106: 0.0305 | AH106: 0.0309 | AI106: 0.0301 | AJ106: 0.0298695085 | AK106: 0.02917252522 | AL106: 0.02967499284 | AM106: 0.02865597625 | AN106: 0.02848536545 | AO106: 0.02896118721 | AP106: 0.02938402321 | AQ106: 0.03001824163 | AR106: 0.03050163116 | AS106: 0.03022846957 | AT106: 0.02981910356 | AU106: 0.03026740052 | AV106: 0.02804803938 | AW106: 0.02858584161 | AX106: 0.02820070231 | AY106: 0.02848309787 | AZ106: 0.02877776989 | BA106: 0.02926315157 | BB106: 0.02931451263 | BC106: 0.02821291722 | BD106: 0.02791394338 | BE106: 0.02855761413 | BF106: 0.02889987685 | BG106: 0.02902523546 | BH106: 0
A107: % of Libor Linked Mortgages | B107: 0.0765 | C107: 0.0915 | D107: 0.1102 | E107: 0.1294 | F107: 0.129 | G107: 0.3464 | H107: 0.2681 | I107: 0.5598 | J107: 0.5099 | K107: 0.427 | L107: 0.4628 | M107: 0.6748 | N107: 0.7137 | O107: 0.6998 | P107: 0.6963 | Q107: 0.7022 | R107: 0.8136 | S107: 0.8839 | T107: 0.9077 | U107: 0.9173 | V107: 0.9343 | W107: 0.9487 | X107: 0.9629 | Y107: 0.9626 | Z107: 0.9663 | AA107: 0.9677 | AB107: 0.9673 | AC107: 0.9671 | AD107: 0.9669 | AE107: 0.9685 | AF107: 0.969 | AG107: 0.9695 | AH107: 0.9691 | AI107: 0.9699 | AJ107: 0.9701304915 | AK107: 0.9708274748 | AL107: 0.9703250072 | AM107: 0.9713440237 | AN107: 0.9715146345 | AO107: 0.9710388128 | AP107: 0.9706159768 | AQ107: 0.9699817584 | AR107: 0.9694983688 | AS107: 0.9697715304 | AT107: 0.9701808964 | AU107: 0.9697325995 | AV107: 0.9719519606 | AW107: 0.9714141584 | AX107: 0.9717992977 | AY107: 0.9715169021 | AZ107: 0.9712222301 | BA107: 0.9707368484 | BB107: 0.9706854874 | BC107: 0.9717870828 | BD107: 0.9720860566 | BE107: 0.9714423859 | BF107: 0.9711001232 | BG107: 0.9709747645 | BH107: 0
A108: Weighted Average Loan Size | B108: 135436.04 | C108: 135673.28 | D108: 135719.24 | E108: 136228 | F108: 136757.63 | G108: 136481.53 | H108: 138017.15 | I108: 136633.81 | J108: 135036.23 | K108: 134914.76 | L108: 134731.87 | M108: 133395.93 | N108: 133345.78 | O108: 133446.37 | P108: 133085.69 | Q108: 132654.53 | R108: 131953.99 | S108: 131479.07 | T108: 131191.96 | U108: 131073.74 | V108: 130906.41 | W108: 130287.89 | X108: 130111.61 | Y108: 129715.35 | Z108: 129377.11 | AA108: 129203.18 | AB108: 129060.31 | AC108: 128808.19 | AD108: 128702.8 | AE108: 128620.86 | AF108: 128520.7 | AG108: 127749.01 | AH108: 127510.28 | AI108: 127046.36 | AJ108: 126631.5085 | AK108: 126773.7802 | AL108: 126666.4221 | AM108: 126005.9554 | AN108: 125501.0052 | AO108: 125446.4772 | AP108: 125431.2282 | AQ108: 125452.0587 | AR108: 125002.785 | AS108: 124556.6525 | AT108: 124087.2976 | AU108: 123955.0158 | AV108: 124054.4735 | AW108: 124637.7393 | AX108: 124691.3889 | AY108: 124444.6142 | AZ108: 124203.1711 | BA108: 123560.3307 | BB108: 123240.9937 | BC108: 123037.8587 | BD108: 123157.0146 | BE108: 122406.5288 | BF108: 122241.5883 | BG108: 121711.6935 | BH108: 0
A109: Weighted Average Interest Rate | B109: 0.0519 | C109: 0.05199 | D109: 0.05226 | E109: 0.05287 | F109: 0.05329 | G109: 0.05807 | H109: 0.05733 | I109: 0.0711 | J109: 0.06957 | K109: 0.06356 | L109: 0.06496 | M109: 0.069 | N109: 0.05584 | O109: 0.04254 | P109: 0.03739 | Q109: 0.03318 | R109: 0.02901 | S109: 0.02716 | T109: 0.02698 | U109: 0.02671 | V109: 0.02646 | W109: 0.02681 | X109: 0.0265 | Y109: 0.02709 | Z109: 0.02851 | AA109: 0.02867 | AB109: 0.02803 | AC109: 0.02504 | AD109: 0.0235 | AE109: 0.0233 | AF109: 0.02327 | AG109: 0.0234 | AH109: 0.02346 | AI109: 0.02346 | AJ109: 0.02354749974 | AK109: 0.02382764263 | AL109: 0.02375208342 | AM109: 0.02383875977 | AN109: 0.02394369895 | AO109: 0.0241960729 | AP109: 0.02408803789 | AQ109: 0.02421484083 | AR109: 0.0242027304 | AS109: 0.02215747603 | AT109: 0.02213639758 | AU109: 0.02179909681 | AV109: 0.02124604158 | AW109: 0.02108005748 | AX109: 0.02352493064 | AY109: 0.02411702584 | AZ109: 0.02453325848 | BA109: 0.02644324274 | BB109: 0.02735139314 | BC109: 0.02693195749 | BD109: 0.02640885513 | BE109: 0.02613436554 | BF109: 0.02634551998 | BG109: 0.02435073122 | BH109: 0
A110: Weighted Average Maturity Date (years) | B110: 21.33 | C110: 21.08 | D110: 20.85 | E110: 20.61 | F110: 20.38 | G110: 20.17 | H110: 19.94 | I110: 19.61 | J110: 19.33 | K110: 19.02 | L110: 18.79 | M110: 18.55 | N110: 18.31 | O110: 18.06 | P110: 17.85 | Q110: 17.61 | R110: 17.35 | S110: 17.16 | T110: 16.94 | U110: 16.69 | V110: 16.44 | W110: 16.2 | X110: 15.95 | Y110: 15.69 | Z110: 15.47 | AA110: 15.22 | AB110: 14.97 | AC110: 14.72 | AD110: 14.47 | AE110: 14.23 | AF110: 13.99 | AG110: 13.77 | AH110: 13.59 | AI110: 13.36 | AJ110: 13.10971451 | AK110: 12.90856345 | AL110: 12.69103702 | AM110: 12.46188976 | AN110: 12.2682924 | AO110: 12.00758469 | AP110: 11.76606292 | AQ110: 11.53141377 | AR110: 11.32325225 | AS110: 11.08287718 | AT110: 10.87723866 | AU110: 10.65120591 | AV110: 10.43073824 | AW110: 10.26610509 | AX110: 10.06011599 | AY110: 9.8705061 | AZ110: 9.651554063 | BA110: 9.427817613 | BB110: 9.182291741 | BC110: 8.952557959 | BD110: 8.777388989 | BE110: 8.568236672 | BF110: 8.363376679 | BG110: 8.165003966 | BH110: 0
A111: Weighted Average Seasoning (months) | B111: 7.29 | C111: 10.3 | D111: 12.25 | E111: 16.22 | F111: 19.17 | G111: 22.12 | H111: 24.96 | I111: 27.97 | J111: 31.24 | K111: 34.37 | L111: 36.44 | M111: 40.42 | N111: 43.39 | O111: 46.41 | P111: 49.46 | Q111: 52.45 | R111: 55.42 | S111: 58.46 | T111: 61.5 | U111: 64.48 | V111: 67.43 | W111: 70.45 | X111: 73.48 | Y111: 76.47 | Z111: 79.46 | AA111: 82.49 | AB111: 85.53 | AC111: 88.52 | AD111: 91.46 | AE111: 94.49 | AF111: 97.51 | AG111: 100.5 | AH111: 103.45 | AI111: 106.44 | AJ111: 109.4542723 | AK111: 112.4421742 | AL111: 115.3997718 | AM111: 118.4287157 | AN111: 121.4831442 | AO111: 124.4745378 | AP111: 127.4705801 | AQ111: 130.4905246 | AR111: 133.4767138 | AS111: 136.3303251 | AT111: 139.282751 | AU111: 142.2957013 | AV111: 145.3149952 | AW111: 148.2842923 | AX111: 151.2259405 | AY111: 154.2604007 | AZ111: 157.2816027 | BA111: 160.2748075 | BB111: 163.2441406 | BC111: 166.2634612 | BD111: 169.2582169 | BE111: 172.2610694 | BF111: 175.2536876 | BG111: 178.2761686 | BH111: 0
A112: % of Interest Only Mortgages | B112: 0.93 | C112: 0.9286 | D112: 0.9295 | E112: 0.9306 | F112: 0.9313 | G112: 0.9322 | H112: 0.9322 | I112: 0.9803 | J112: 0.9322 | K112: 0.9353 | L112: 0.934 | M112: 0.9289 | N112: 0.93 | O112: 0.9301 | P112: 0.9295 | Q112: 0.9316 | R112: 0.9324 | S112: 0.9317 | T112: 0.9313 | U112: 0.9326 | V112: 0.9334 | W112: 0.9342 | X112: 0.9356 | Y112: 0.9373 | Z112: 0.9408 | AA112: 0.9431 | AB112: 0.9425 | AC112: 0.9438 | AD112: 0.9461 | AE112: 0.9449 | AF112: 0.9454 | AG112: 0.9459 | AH112: 0.9455 | AI112: 0.9449 | AJ112: 0.9448877822 | AK112: 0.9451168131 | AL112: 0.9471143939 | AM112: 0.9472102767 | AN112: 0.9456170267 | AO112: 0.9471056293 | AP112: 0.9493543288 | AQ112: 0.9498728202 | AR112: 0.950838509 | AS112: 0.9519290024 | AT112: 0.9524653137 | AU112: 0.9521085204 | AV112: 0.9527167611 | AW112: 0.9543612992 | AX112: 0.9564137224 | AY112: 0.9573725301 | AZ112: 0.9580649111 | BA112: 0.9587496269 | BB112: 0.9596828985 | BC112: 0.960599643 | BD112: 0.9617869241 | BE112: 0.96197692 | BF112: 0.9636594231 | BG112: 0.9649251688 | BH112: 0
A113: % of Repayment Mortgages | B113: 0.07 | C113: 0.0714 | D113: 0.0705 | E113: 0.0694 | F113: 0.0687 | G113: 0.0678 | H113: 0.0678 | I113: 0.0697 | J113: 0.0678 | K113: 0.0647 | L113: 0.066 | M113: 0.0711 | N113: 0.07 | O113: 0.0699 | P113: 0.0705 | Q113: 0.0684 | R113: 0.0676 | S113: 0.0683 | T113: 0.0687 | U113: 0.0674 | V113: 0.0666 | W113: 0.0658 | X113: 0.0644 | Y113: 0.0627 | Z113: 0.0592 | AA113: 0.0569 | AB113: 0.0575 | AC113: 0.0562 | AD113: 0.0539 | AE113: 0.0551 | AF113: 0.0546 | AG113: 0.0541 | AH113: 0.0545 | AI113: 0.0551 | AJ113: 0.05511221784 | AK113: 0.0548831869 | AL113: 0.05288560608 | AM113: 0.0527897233 | AN113: 0.05438297328 | AO113: 0.05289437069 | AP113: 0.05064567119 | AQ113: 0.05012717985 | AR113: 0.04916149098 | AS113: 0.04807099755 | AT113: 0.04753468632 | AU113: 0.04789147957 | AV113: 0.0472832389 | AW113: 0.04563870076 | AX113: 0.04358627756 | AY113: 0.04262746995 | AZ113: 0.04193508889 | BA113: 0.04125037307 | BB113: 0.04031710152 | BC113: 0.03940035697 | BD113: 0.03821307587 | BE113: 0.03802307997 | BF113: 0.03634057686 | BG113: 0.03507483119 | BH113: 0
A114: % of Mortgages in London | B114: 0.2886 | C114: 0.2903 | D114: 0.2886 | E114: 0.2917 | F114: 0.2924 | G114: 0.2866 | H114: 0.2877 | I114: 0.2723 | J114: 0.2613 | K114: 0.2674 | L114: 0.2635 | M114: 0.2511 | N114: 0.2528 | O114: 0.2541 | P114: 0.2539 | Q114: 0.251 | R114: 0.2466 | S114: 0.2425 | T114: 0.2405 | U114: 0.2377 | V114: 0.2371 | W114: 0.2362 | X114: 0.2371 | Y114: 0.2339 | Z114: 0.232 | AA114: 0.2317 | AB114: 0.2304 | AC114: 0.2296 | AD114: 0.2299 | AE114: 0.2287 | AF114: 0.2297 | AG114: 0.2279 | AH114: 0.2237 | AI114: 0.2222 | AJ114: 0.2183045492 | AK114: 0.2170585366 | AL114: 0.2175775636 | AM114: 0.2152632022 | AN114: 0.2099491777 | AO114: 0.2100318414 | AP114: 0.2110940257 | AQ114: 0.2095270989 | AR114: 0.2039820402 | AS114: 0.2059764174 | AT114: 0.2031773265 | AU114: 0.2017812561 | AV114: 0.2037020698 | AW114: 0.2037852911 | AX114: 0.2017697893 | AY114: 0.204267524 | AZ114: 0.2017517176 | BA114: 0.1936285982 | BB114: 0.194048532 | BC114: 0.1935008501 | BD114: 0.1956696175 | BE114: 0.1975332828 | BF114: 0.1964288759 | BG114: 0.1956625019 | BH114: 0
A115: % of Mortgages in the South East | B115: 0.3457 | C115: 0.3447 | D115: 0.348 | E115: 0.3479 | F115: 0.3509 | G115: 0.3568 | H115: 0.3504 | I115: 0.3522 | J115: 0.3531 | K115: 0.3487 | L115: 0.3474 | M115: 0.3531 | N115: 0.3505 | O115: 0.3493 | P115: 0.3475 | Q115: 0.3495 | R115: 0.3525 | S115: 0.3532 | T115: 0.3524 | U115: 0.3531 | V115: 0.3517 | W115: 0.3495 | X115: 0.3471 | Y115: 0.3483 | Z115: 0.3485 | AA115: 0.3482 | AB115: 0.3502 | AC115: 0.3506 | AD115: 0.3489 | AE115: 0.349 | AF115: 0.3475 | AG115: 0.3455 | AH115: 0.3463 | AI115: 0.3445 | AJ115: 0.3458409357 | AK115: 0.347950938 | AL115: 0.3438045023 | AM115: 0.3391551081 | AN115: 0.3397570304 | AO115: 0.3357575932 | AP115: 0.3314489575 | AQ115: 0.3306302464 | AR115: 0.3329298221 | AS115: 0.3282280772 | AT115: 0.3296341271 | AU115: 0.3265030466 | AV115: 0.3248953991 | AW115: 0.3233205791 | AX115: 0.3230137257 | AY115: 0.3227450302 | AZ115: 0.324710754 | BA115: 0.3278809343 | BB115: 0.3267778065 | BC115: 0.3273947549 | BD115: 0.3252620422 | BE115: 0.3228976131 | BF115: 0.3230347725 | BG115: 0.3201927349 | BH115: 0
A116: % of Owner Occupied Mortgages | B116: 0 | C116: 0 | D116: 0.0004 | E116: 0 | F116: 0 | G116: 0 | H116: 0 | I116: 0 | J116: 0 | K116: 0 | L116: 0 | M116: 0 | N116: 0 | O116: 0 | P116: 0 | Q116: 0 | R116: 0 | S116: 0 | T116: 0 | U116: 0 | V116: 0 | W116: 0 | X116: 0 | Y116: 0 | Z116: 0 | AA116: 0 | AB116: 0 | AC116: 0 | AD116: 0 | AE116: 0 | AF116: 0 | AG116: 0 | AH116: 0 | AI116: 0 | AJ116: 0 | AK116: 0 | AL116: 0 | AM116: 0 | AN116: 0 | AO116: 0 | AP116: 0 | AQ116: 0 | AR116: 0 | AS116: 0 | AT116: 0 | AU116: 0 | AV116: 0 | AW116: 0 | AX116: 0 | AY116: 0 | AZ116: 0 | BA116: 0 | BB116: 0 | BC116: 0 | BD116: 0 | BE116: 0 | BF116: 0 | BG116: 0 | BH116: 0
A117: % of Investment Home Loans - Professional Landlords | B117: 0.3408 | C117: 0.3409 | D117: 0.3394 | E117: 0.3401 | F117: 0.3384 | G117: 0.3344 | H117: 0.3273 | I117: 0.336 | J117: 0.3598 | K117: 0.3649 | L117: 0.3764 | M117: 0.372 | N117: 0.3712 | O117: 0.3705 | P117: 0.3726 | Q117: 0.374 | R117: 0.3724 | S117: 0.3739 | T117: 0.3764 | U117: 0.377 | V117: 0.3785 | W117: 0.3813 | X117: 0.382 | Y117: 0.3829 | Z117: 0.3834 | AA117: 0.3851 | AB117: 0.3874 | AC117: 0.3884 | AD117: 0.3883 | AE117: 0.3887 | AF117: 0.3911 | AG117: 0.3887 | AH117: 0.3854 | AI117: 0.3869 | AJ117: 0.3841023368 | AK117: 0.385024578 | AL117: 0.3869812536 | AM117: 0.393781349 | AN117: 0.3988903263 | AO117: 0.398418862 | AP117: 0.4000405499 | AQ117: 0.4048576733 | AR117: 0.405040139 | AS117: 0.4057062002 | AT117: 0.4078086846 | AU117: 0.4059693112 | AV117: 0.4085555662 | AW117: 0.4119517281 | AX117: 0.415666316 | AY117: 0.4182251392 | AZ117: 0.4207893124 | BA117: 0.4147456525 | BB117: 0.414792264 | BC117: 0.4153286039 | BD117: 0.4154899133 | BE117: 0.4203967703 | BF117: 0.4223005891 | BG117: 0.4278869996 | BH117: 0
A118: % of Investment Home Loans - Emerging Professional Landlords | B118: 0.6592 | C118: 0.6591 | D118: 0.6602 | E118: 0.6599 | F118: 0.6616 | G118: 0.6656 | H118: 0.6727 | I118: 0.664 | J118: 0.6402 | K118: 0.6351 | L118: 0.6236 | M118: 0.628 | N118: 0.6288 | O118: 0.6295 | P118: 0.6274 | Q118: 0.626 | R118: 0.6276 | S118: 0.6261 | T118: 0.6236 | U118: 0.623 | V118: 0.6215 | W118: 0.6187 | X118: 0.618 | Y118: 0.6171 | Z118: 0.6166 | AA118: 0.6149 | AB118: 0.6126 | AC118: 0.6116 | AD118: 0.6117 | AE118: 0.6113 | AF118: 0.6089 | AG118: 0.6113 | AH118: 0.6146 | AI118: 0.6131 | AJ118: 0.6158976632 | AK118: 0.614975422 | AL118: 0.6130187464 | AM118: 0.606218651 | AN118: 0.6011096737 | AO118: 0.601581138 | AP118: 0.5999594501 | AQ118: 0.5951423267 | AR118: 0.594959861 | AS118: 0.5942937998 | AT118: 0.5921913154 | AU118: 0.5940306888 | AV118: 0.5914444338 | AW118: 0.5880482719 | AX118: 0.584333684 | AY118: 0.5817748608 | AZ118: 0.5792106876 | BA118: 0.5852543475 | BB118: 0.585207736 | BC118: 0.5846713961 | BD118: 0.5845100867 | BE118: 0.5796032297 | BF118: 0.5776994109 | BG118: 0.5721130004 | BH118: 0
A119: Weighted Average Interest Coverage Ratio (calculated at the origination date) | B119: 1.43 | C119: 1.43 | D119: 1.44 | E119: 1.43 | F119: 1.43 | G119: 1.43 | H119: 1.43 | I119: 1.44 | J119: 1.45 | K119: 1.46 | L119: 1.46 | M119: 1.47 | N119: 1.47 | O119: 1.47 | P119: 1.47 | Q119: 1.47 | R119: 1.47 | S119: 1.47 | T119: 1.47 | U119: 1.47 | V119: 1.47 | W119: 1.47 | X119: 1.47 | Y119: 1.47 | Z119: 1.47 | AA119: 1.47 | AB119: 1.47 | AC119: 1.47 | AD119: 1.47 | AE119: 1.47 | AF119: 1.47 | AG119: 1.5 | AH119: 1.5 | AI119: 1.5 | AJ119: 1.505442993 | AK119: 1.506519007 | AL119: 1.508548302 | AM119: 1.508470337 | AN119: 1.510615766 | AO119: 1.514022745 | AP119: 1.515708564 | AQ119: 1.517324425 | AR119: 1.516386072 | AS119: 1.513168754 | AT119: 1.513061693 | AU119: 1.516901612 | AV119: 1.518808182 | AW119: 1.521603232 | AX119: 1.522791122 | AY119: 1.523085932 | AZ119: 1.524520488 | BA119: 1.524239673 | BB119: 1.527675249 | BC119: 1.52997244 | BD119: 1.533834778 | BE119: 1.53584946 | BF119: 1.537120587 | BG119: 1.537172853 | BH119: 0
A120: MTL Lifetime Redemption Rate | B120: 0.0361 | C120: 0.0338 | D120: 0.0457 | E120: 0.0541 | F120: 0.0583 | G120: 0.0879 | H120: 0.1332 | I120: 0.2315 | J120: 0.2834 | K120: 0.2902 | L120: 0.2851 | M120: 0.2854 | N120: 0.2704 | O120: 0.256 | P120: 0.2446 | Q120: 0.2333 | R120: 0.2237 | S120: 0.2152 | T120: 0.2082 | U120: 0.2006 | V120: 0.1935 | W120: 0.1873 | X120: 0.1807 | Y120: 0.1753 | Z120: 0.1702 | AA120: 0.1649 | AB120: 0.1607 | AC120: 0.1565 | AD120: 0.1524 | AE120: 0.1487 | AF120: 0.145 | AG120: 0.1428 | AH120: 0.1403 | AI120: 0.1349 | AJ120: 0.1332 | AK120: 0.1311 | AL120: 0.1296 | AM120: 0.1283 | AN120: 0.1275 | AO120: 0.1261 | AP120: 0.1246 | AQ120: 0.1237 | AR120: 0.1225 | AS120: 0.1209 | AT120: 0.1195 | AU120: 0.1185 | AV120: 0.1175 | AW120: 0.1172 | AX120: 0.1166 | AY120: 0.1154 | AZ120: 0.1146 | BA120: 0.114 | BB120: 0.1129 | BC120: 0.112 | BD120: 0.1118 | BE120: 0.1114 | BF120: 0.1104 | BG120: 0.11 | BH120: 1
A121: Aggregate Potential Redraw Amount | B121: 878346.49 | C121: 952397.56 | D121: 876683.73 | E121: 881595 | F121: 803392.85 | G121: 824047.01 | H121: 653752.23 | I121: 649289.54 | J121: 770207.62 | K121: 745687.67 | L121: 735691.43 | M121: 666711.54 | N121: 664569.5 | O121: 598313.71 | P121: 686771.04 | Q121: 666995.05 | R121: 683010.64 | S121: 576239.39 | T121: 535737.83 | U121: 516561.94 | V121: 487727.56 | W121: 519405.74 | X121: 506975.98 | Y121: 538697.51 | Z121: 566067.24 | AA121: 574173.18 | AB121: 559355.14 | AC121: 563172.32 | AD121: 537844.41 | AE121: 552472.13 | AF121: 477636.28 | AG121: 0 | AH121: 0 | AI121: 0 | AJ121: 0 | AK121: 0 | AL121: 0 | AM121: 0 | AN121: 0 | AO121: 0 | AP121: 0 | AQ121: 0 | AR121: 0 | AS121: 0 | AT121: 0 | AU121: 0 | AV121: 0 | AW121: 0 | AX121: 0 | AY121: 0 | AZ121: 0 | BA121: 0 | BB121: 0 | BC121: 0 | BD121: 0 | BE121: 0 | BF121: 0 | BG121: 0 | BH121: 0
A122: Number of Properties in Possession | B122: 0 | C122: 0 | D122: 0 | E122: 0 | F122: 0 | G122: 0 | H122: 0 | I122: 0 | J122: 0 | K122: 0 | L122: 0 | M122: 0 | N122: 0 | O122: 0 | P122: 0 | Q122: 0 | R122: 0 | S122: 0 | T122: 0 | U122: 0 | V122: 0 | W122: 0 | X122: 0 | Y122: 0 | Z122: 0 | AA122: 0 | AB122: 0 | AC122: 0 | AD122: 0 | AE122: 0 | AF122: 0 | AG122: 0 | AH122: 0 | AI122: 0 | AJ122: 0 | AK122: 0 | AL122: 0 | AM122: 0 | AN122: 0 | AO122: 0 | AP122: 0 | AQ122: 0 | AR122: 0 | AS122: 0 | AT122: 0 | AU122: 0 | AV122: 0 | AW122: 0 | AX122: 0 | AY122: 0 | AZ122: 0 | BA122: 0 | BB122: 0 | BC122: 0 | BD122: 0 | BE122: 0 | BF122: 0 | BG122: 0 | BH122: 0
A123: Appointment of a Receiver of Rent | B123: 5 | C123: 13 | D123: 23 | E123: 25 | F123: 31 | G123: 29 | H123: 29 | I123: 26 | J123: 44 | K123: 33 | L123: 33 | M123: 44 | N123: 54 | O123: 60 | P123: 55 | Q123: 55 | R123: 50 | S123: 45 | T123: 42 | U123: 39 | V123: 38 | W123: 38 | X123: 38 | Y123: 39 | Z123: 39 | AA123: 40 | AB123: 41 | AC123: 41 | AD123: 39 | AE123: 38 | AF123: 38 | AG123: 36 | AH123: 35 | AI123: 37 | AJ123: 35 | AK123: 33 | AL123: 31 | AM123: 30 | AN123: 27 | AO123: 29 | AP123: 29 | AQ123: 25 | AR123: 24 | AS123: 24 | AT123: 23 | AU123: 21 | AV123: 21 | AW123: 22 | AX123: 21 | AY123: 21 | AZ123: 21 | BA123: 17 | BB123: 17 | BC123: 17 | BD123: 16 | BE123: 13 | BF123: 15 | BG123: 13 | BH123: 0
A124: MTL Quarterly Losses | B124: 0 | C124: 0 | D124: 0 | E124: 0 | F124: 0 | G124: 72 | H124: 40 | I124: 191 | J124: 20 | K124: 0 | L124: 146 | M124: 74 | N124: 201 | O124: 335 | P124: 231 | Q124: 290 | R124: 302 | S124: 92 | T124: 151 | U124: 1 | V124: 0 | W124: 32 | X124: -126 | Y124: 65 | Z124: 1 | AA124: -5 | AB124: 94 | AC124: -72 | AD124: 12 | AE124: 26 | AF124: -182 | AG124: 4 | AH124: 27 | AI124: -158 | AJ124: 54 | AK124: 83 | AL124: 15 | AM124: 93 | AN124: 26 | AO124: -7 | AP124: -4 | AQ124: 115 | AR124: 33 | AS124: -21 | AT124: 31 | AU124: 71 | AV124: -50 | AW124: 14 | AX124: 19 | AY124: -18 | AZ124: -4 | BA124: 108 | BB124: 0 | BC124: 12 | BD124: 2 | BE124: 61 | BF124: 1 | BG124: 3 | BH124: -3
A125: Arrears excluding Receiver of Rent and Possession Cases
A126: Performing Loans | B126: 0.9918 | C126: 0.9923 | D126: 0.9889 | E126: 0.9921 | F126: 0.9887 | G126: 0.9898 | H126: 0.9846 | I126: 0.9869 | J126: 0.9794 | K126: 0.9822 | L126: 0.972 | M126: 0.9799 | N126: 0.9773 | O126: 0.9855 | P126: 0.985 | Q126: 0.9882 | R126: 0.9897 | S126: 0.9853 | T126: 0.9874 | U126: 0.9916 | V126: 0.9955 | W126: 0.9912 | X126: 0.9939 | Y126: 0.9933 | Z126: 0.9948 | AA126: 0.9939 | AB126: 0.9942 | AC126: 0.999 | AD126: 0.9904 | AE126: 0.9981 | AF126: 0.997 | AG126: 0.995 | AH126: 0.9958 | AI126: 0.9992 | AJ126: 1 | AK126: 0.9995256924 | AL126: 0.9982325784 | AM126: 0.9995078885 | AN126: 0.9971539944 | AO126: 0.9992341565 | AP126: 0.9952871661 | AQ126: 0.9962719714 | AR126: 0.9982693886 | AS126: 0.9986367386 | AT126: 0.9991719475 | AU126: 0.9966401577 | AV126: 0.9977000252 | AW126: 1 | AX126: 0.9993960879 | AY126: 0.9981759106 | AZ126: 0.9949997408 | BA126: 0.9949274211 | BB126: 0.9926229257 | BC126: 0.9960539494 | BD126: 0.9965995571 | BE126: 0.9929442173 | BF126: 0.9963430676 | BG126: 0.9922145514 | BH126: 0
A127: >1 to 2 months arrears | B127: 0.0061 | C127: 0.0037 | D127: 0.0063 | E127: 0.0049 | F127: 0.0076 | G127: 0.0082 | H127: 0.0098 | I127: 0.0079 | J127: 0.0156 | K127: 0.0122 | L127: 0.0132 | M127: 0.0083 | N127: 0.011 | O127: 0.0093 | P127: 0.0102 | Q127: 0.0059 | R127: 0.0057 | S127: 0.0095 | T127: 0.0075 | U127: 0.0072 | V127: 0.0032 | W127: 0.0063 | X127: 0.0051 | Y127: 0.0043 | Z127: 0.0042 | AA127: 0.0052 | AB127: 0.0042 | AC127: 0 | AD127: 0.0087 | AE127: 0.0013 | AF127: 0.0024 | AG127: 0.005 | AH127: 0.0037 | AI127: 0.0008 | AJ127: 0 | AK127: 0.0004743075582 | AL127: 0.001767421578 | AM127: 0.0004921115075 | AN127: 0.0007510192322 | AO127: 0.0007658434986 | AP127: 0.003934542458 | AQ127: 0.0008833269649 | AR127: 0 | AS127: 0 | AT127: 0 | AU127: 0.003359842316 | AV127: 0 | AW127: 0 | AX127: 0 | AY127: 0.001824089447 | AZ127: 0.001858310692 | BA127: 0.003820884052 | BB127: 0.007377074303 | BC127: 0.003946050593 | BD127: 0.0006851134361 | BE127: 0.001580612045 | BF127: 0.001729377917 | BG127: 0.002347152497 | BH127: 0
A128: >2 to 3 months arrears | B128: 0.0021 | C128: 0.0022 | D128: 0.0048 | E128: 0.003 | F128: 0.0025 | G128: 0.0016 | H128: 0.0047 | I128: 0.0038 | J128: 0.0035 | K128: 0.0041 | L128: 0.0118 | M128: 0.0096 | N128: 0.0047 | O128: 0.0032 | P128: 0.0006 | Q128: 0.0048 | R128: 0.0027 | S128: 0.002 | T128: 0.0042 | U128: 0.0012 | V128: 0.0013 | W128: 0.0025 | X128: 0.001 | Y128: 0.0024 | Z128: 0.001 | AA128: 0.0009 | AB128: 0.0016 | AC128: 0.001 | AD128: 0.0009 | AE128: 0.0006 | AF128: 0 | AG128: 0 | AH128: 0.0005 | AI128: 0 | AJ128: 0 | AK128: 0 | AL128: 0 | AM128: 0 | AN128: 0 | AO128: 0 | AP128: 0.0007782914177 | AQ128: 0.0007930158068 | AR128: 0.001730611366 | AS128: 0.0005470250213 | AT128: 0 | AU128: 0 | AV128: 0.002299974841 | AW128: 0 | AX128: 0.0006039120584 | AY128: 0 | AZ128: 0.003141948556 | BA128: 0.001251694813 | BB128: 0 | BC128: 0 | BD128: 0.002715329484 | BE128: 0.004124133436 | BF128: 0.000556437092 | BG128: 0.001723026758 | BH128: 0
A129: >3 months arrears | B129: 0 | C129: 0.0018 | D129: 0 | E129: 0 | F129: 0.0012 | G129: 0.0004 | H129: 0.0009 | I129: 0.0014 | J129: 0.0015 | K129: 0.0015 | L129: 0.003 | M129: 0.0022 | N129: 0.007 | O129: 0.002 | P129: 0.0042 | Q129: 0.0011 | R129: 0.0019 | S129: 0.0032 | T129: 0.0009 | U129: 0 | V129: 0 | W129: 0 | X129: 0 | Y129: 0 | Z129: 0 | AA129: 0 | AB129: 0 | AC129: 0 | AD129: 0 | AE129: 0 | AF129: 0.0006 | AG129: 0 | AH129: 0 | AI129: 0 | AJ129: 0 | AK129: 0 | AL129: 0 | AM129: 0 | AN129: 0.0020949864 | AO129: 0 | AP129: 0 | AQ129: 0.002051685786 | AR129: 0 | AS129: 0.0008162363625 | AT129: 0.0008280525373 | AU129: 0 | AV129: 0 | AW129: 0 | AX129: 0 | AY129: 0 | AZ129: 0 | BA129: 0 | BB129: 0 | BC129: 0 | BD129: 0 | BE129: 0.001351037184 | BF129: 0.001371117377 | BG129: 0.003715269308 | BH129: 0
A130: Total | B130: =SUM(B126:B129) -> 1 | C130: 1 | D130: 1 | E130: 1 | F130: 1 | G130: 1 | H130: 1 | I130: 1 | J130: 1 | K130: 1 | L130: 1 | M130: 1 | N130: 1 | O130: 1 | P130: 1 | Q130: 1 | R130: 1 | S130: 1 | T130: 1 | U130: 1 | V130: 1 | W130: 1 | X130: 1 | Y130: 1 | Z130: =SUM(Z126:Z129) -> 1 | AA130: 1 | AB130: 1 | AC130: 1 | AD130: 1 | AE130: 1 | AF130: =SUM(AF126:AF129) -> 1 | AG130: =SUM(AG126:AG129) -> 1 | AH130: =SUM(AH126:AH129) -> 1 | AI130: =SUM(AI126:AI129) -> 1 | AJ130: =SUM(AJ126:AJ129) -> 1 | AK130: 1 | AL130: 1 | AM130: 1 | AN130: 1 | AO130: 1 | AP130: 1 | AQ130: 1 | AR130: 1 | AS130: 1 | AT130: 1 | AU130: 1 | AV130: 1 | AW130: 1 | AX130: 1 | AY130: 1 | AZ130: 1 | BA130: 1 | BB130: 1 | BC130: 1 | BD130: 1 | BE130: 1 | BF130: 1 | BG130: 1 | BH130: =SUM(BH126:BH129) -> 0

Sheet Graphs
P2: PARAGON MORTGAGES (NO.10) PLC
